Workbook

Sheet Start
B1: Preface
B3: Excellent engineers use a systematic way of thinking. And in the field of energy and material efficient product design they are in need of a methodology to guide especially early planning and decision making steps in der product development process. One element of great importance is the so called "life cycle thinking" and a pragmatic and easy to handle evaluation of all energy and material impacts over all product life cycle. This tool offers such a planning frame work.
B4: Since more than 20 years, ecodesign experts in mechanical industry have been concerned with the question of how industrial products and especially machine tools can be improved in an ecological sense. As some products are often used in different ways by different customers, usage itself has to be hypothesized as a variable entity. Ecodesign therefore requires system knowhow. This is about more than just “filter & recycling“; much rather better products and production systems are required. Once you start looking at machines, respectively production systems, the complexity of the product increases enormously. For ecodesign in the machine industry specific knowhow is essential - knowhow which is not yet or only partly available.
B5: Ecodesign aims to achieve an improvement of products which particularly also fulfils eco-logical criteria. The challenge for product development is to see the product as a whole, to see it as a system, which is bonded in a relationship with the environment and which impacts the environment in different ways throughout all of its product life phases. The design process is crucial for this; the designer has to recognize when and where potentially significant impact on the environment could occur and how he / she can influence i.e. improve these. This process, therefore, entails a specific analysis of the “system and its environment“ as well as the search for solutions on the basis of identified or suspected specific ecological weaknesses. This is the only way to achieve real improvements.
B6: This is where the following tool proves to be useful. The tool provides a framework; all information about an existing or planned product can be modelled.
B8: The calculation itself is based on energy consumption. The energy-profiles and some other calculations provide a first interpretation of significant and non-significant functions and components. This transparency is useful especially in the early stage of product development.
B9: The tool was mainly developed within a project which was endorsed by "Swiss Electric Research"; the main project partners have been ETH Zürich and Züst Engineering AG; five companies which are producing machine tools have been industrial partners - a big thank you to all project partners!
B11: Now, we wish you a successful application of this tool.
B13: For the project team, Seegräben, 11th April 2013 Rainer Züst Züst Engineering AG

Sheet Overview
D1: =Version -> ET-MTED-V3R1
A2: Eco design of Machines: Potential Estimation Tool | H2: Eco design of Machines: Potential Estimation Tool
H3: EXAMPLE
A5: Overview | B5: In this section, general information about the machine is collected. This information will later be used for a structured data input and the analysis of the machines energetic footprint | H5: Overview | I5: In this section, general information about the machine is collected. This information will later be used for a structured data input and the analysis of the machines energetic footprint
A8: General | B8: Name of the machine | C8: Test | H8: General | I8: Name of the machine | J8: Test
B9: Company | C9: My Company | I9: Company | J9: My Company
B10: Price per unit | C10: 100000 | I10: Price per unit | J10: 100000
B11: Units sold per year | C11: 12 | I11: Units sold per year | J11: 12
A14: Structure | B14: The machine consists of a frame, which holds the following modules: | H14: Structure | I14: The machine consists of a frame, which holds the following modules:
B15: Module 1 | C15: Hauptspindel | I15: Module 1 | J15: Hauptspindel
B16: Module 2 | C16: Achse X1 | I16: Module 2 | J16: Achse X1
B17: Module 3 | C17: Achse Y1 | I17: Module 3 | J17: Achse Y1
B18: Module 4 | C18: Achse Z1 | I18: Module 4 | J18: Achse Z1
B19: Module 5 | C19: Kabinett | I19: Module 5 | J19: Kabinett
B20: Module 6 | C20: KSM Pumpe | I20: Module 6 | J20: KSM Pumpe
B21: Module 7 | C21: Spindelkühlung | I21: Module 7 | J21: Spindelkühlung
B22: Module 8 | C22: Sinumerik | I22: Module 8 | J22: Sinumerik
C23: =COUNTA(C15:C22)&" modules in total" -> 8 modules in total | J23: =COUNTA(J15:J22)&" modules in total" -> 8 modules in total
A26: Tools | B26: During the use phase of the machine, the following tools are installed and used in the machine: | H26: Tools | I26: During the use phase of the machine, the following tools are installed and used in the machine:
B27: Tool 1 | C27: Fräser 1 | I27: Tool 1 | J27: Fräser 1
B28: Tool 2 | C28: Fräser 2 | I28: Tool 2 | J28: Fräser 2
B29: Tool 3 | C29: Fräser 3 | I29: Tool 3 | J29: Fräser 3
B30: Tool 4 | C30: Bohrer 1 | I30: Tool 4 | J30: Bohrer 1
B31: Tool 5 | C31: Bohrer 2 | I31: Tool 5 | J31: Bohrer 2
B32: Tool 6 | C32: Bohrer 3 | I32: Tool 6 | J32: Bohrer 3
B33: Tool 7 | C33: Bohrer 4 | I33: Tool 7 | J33: Bohrer 4
B34: Tool 8 | C34: Gewindeschneider | I34: Tool 8 | J34: Gewindeschneider
C35: =COUNTA(C27:C34)&" tools in total" -> 8 tools in total | J35: =COUNTA(J27:J34)&" tools in total" -> 8 tools in total
A38: Infrastructure | B38: In order to operate proper, the machine requires the following infrastructure: | H38: Infrastructure | I38: In order to operate proper, the machine requires the following infrastructure:
B39: Air conditioning | C39: yes | I39: Air conditioning | J39: yes
B40: Heating (fluid) | C40: no | I40: Heating (fluid) | J40: no
B41: Cooling (fluid) | C41: yes | I41: Cooling (fluid) | J41: yes
B42: Lubrication centre | C42: yes | I42: Lubrication centre | J42: yes
C43: =COUNTIFS(C39:C42,"yes")&" infrastructures in total" -> 3 infrastructures in total | J43: =COUNTIFS(J39:J42,"yes")&" infrastructures in total" -> 3 infrastructures in total

Sheet LifeCycle
H1: =Version -> ET-MTED-V3R1
A2: Life-Cycle | N2: Life-Cycle
N3: EXAMPLE
A5: Overview | B5: During the life cycle analysis, information about each life phase of the machine are collected. Based on this information the primary energy required for the machine life time is calculated. This life time includes the following steps: 1. Raw materials 2. Purchasing & Production 3. Packaging 4. Transportation 5. Operation 6. Recycling (The additional infrastructures as the utilization by the customer are quantified the sheets "Infrastructure" and "Use".) | N5: Overview | O5: During the life cycle analysis, information about each life phase of the machine are collected. Based on this information the primary energy required for the machine life time is calculated. This life time includes the following steps: 1. Raw materials 2. Purchasing & Production 3. Packaging 4. Transportation 5. Operation 6. Recycling (The additional infrastructures as the utilization by the customer are quantified the sheets "Infrastructure" and "Use".)
A8: Raw materials | C8: Material 1 | D8: Material 2 | E8: Material 3 | F8: Material 4 | G8: Material 5 | N8: Raw materials | P8: Material 1 | Q8: Material 2 | R8: Material 3 | S8: Material 4 | T8: Material 5
B9: Machine structure | C9: steel, iron | D9: cast iron | E9: aluminium, copper, brass | F9: electronics | O9: Machine structure | P9: steel, iron | Q9: cast iron | R9: aluminium, copper, brass | S9: electronics
B10: =SUM(C10:G10) -> 4201 | C10: 2000 | D10: 2000 | E10: 200 | F10: 1 | O10: =SUM(P10:T10) -> 4201 | P10: 2000 | Q10: 2000 | R10: 200 | S10: 1
B11: Modules | O11: Modules
B12: =IF(Module_1="","-",Module_1) -> Hauptspindel | C12: steel, high-alloyed | D12: aluminium, copper, brass | E12: electronics | O12: =IF(Module_1_Examp="","-",Module_1_Examp) -> Hauptspindel | P12: steel, high-alloyed | Q12: aluminium, copper, brass | R12: electronics
B13: =IF(B12="-","",SUM(C13:G13)) -> 120 | C13: 30 | D13: 80 | E13: 10 | O13: =IF(O12="-","",SUM(P13:T13)) -> 120 | P13: 30 | Q13: 80 | R13: 10
B14: =IF(Module_2="","-",Module_2) -> Achse X1 | C14: steel, high-alloyed | D14: aluminium, copper, brass | E14: electronics | O14: =IF(Module_2_Examp="","-",Module_2_Examp) -> Achse X1 | P14: steel, high-alloyed | Q14: aluminium, copper, brass | R14: electronics
B15: =IF(B14="-","",SUM(C15:G15)) -> 61 | C15: 50 | D15: 10 | E15: 1 | O15: =IF(O14="-","",SUM(P15:T15)) -> 61 | P15: 50 | Q15: 10 | R15: 1
B16: =IF(Module_3="","-",Module_3) -> Achse Y1 | C16: steel, high-alloyed | D16: aluminium, copper, brass | E16: electronics | O16: =IF(Module_3_Examp="","-",Module_3_Examp) -> Achse Y1 | P16: steel, high-alloyed | Q16: aluminium, copper, brass | R16: electronics
B17: =IF(B16="-","",SUM(C17:G17)) -> 61 | C17: 50 | D17: 10 | E17: 1 | O17: =IF(O16="-","",SUM(P17:T17)) -> 61 | P17: 50 | Q17: 10 | R17: 1
B18: =IF(Module_4="","-",Module_4) -> Achse Z1 | C18: steel, high-alloyed | D18: aluminium, copper, brass | E18: electronics | O18: =IF(Module_4_Examp="","-",Module_4_Examp) -> Achse Z1 | P18: steel, high-alloyed | Q18: aluminium, copper, brass | R18: electronics
B19: =IF(B18="-","",SUM(C19:G19)) -> 35.5 | C19: 30 | D19: 5 | E19: 0.5 | O19: =IF(O18="-","",SUM(P19:T19)) -> 35.5 | P19: 30 | Q19: 5 | R19: 0.5
B20: =IF(Module_5="","-",Module_5) -> Kabinett | C20: steel, iron | D20: electronics | O20: =IF(Module_5_Examp="","-",Module_5_Examp) -> Kabinett | P20: steel, iron | Q20: electronics
B21: =IF(B20="-","",SUM(C21:G21)) -> 115 | C21: 15 | D21: 100 | O21: =IF(O20="-","",SUM(P21:T21)) -> 115 | P21: 15 | Q21: 100
B22: =IF(Module_6="","-",Module_6) -> KSM Pumpe | C22: steel, iron | D22: aluminium, copper, brass | E22: electronics | O22: =IF(Module_6_Examp="","-",Module_6_Examp) -> KSM Pumpe | P22: steel, iron | Q22: aluminium, copper, brass | R22: electronics
B23: =IF(B22="-","",SUM(C23:G23)) -> 17.2 | C23: 5 | D23: 12 | E23: 0.2 | O23: =IF(O22="-","",SUM(P23:T23)) -> 17.2 | P23: 5 | Q23: 12 | R23: 0.2
B24: =IF(Module_7="","-",Module_7) -> Spindelkühlung | C24: steel, iron | D24: aluminium, copper, brass | E24: electronics | O24: =IF(Module_7_Examp="","-",Module_7_Examp) -> Spindelkühlung | P24: steel, iron | Q24: aluminium, copper, brass | R24: electronics
B25: =IF(B24="-","",SUM(C25:G25)) -> 11.2 | C25: 3 | D25: 8 | E25: 0.2 | O25: =IF(O24="-","",SUM(P25:T25)) -> 11.2 | P25: 3 | Q25: 8 | R25: 0.2
B26: =IF(Module_8="","-",Module_8) -> Sinumerik | C26: steel, iron | D26: PE, PP, PET, Polyester | E26: electronics | O26: =IF(Module_8_Examp="","-",Module_8_Examp) -> Sinumerik | P26: steel, iron | Q26: PE, PP, PET, Polyester | R26: electronics
B27: =IF(B26="-","",SUM(C27:G27)) -> 12 | C27: 2 | D27: 5 | E27: 5 | O27: =IF(O26="-","",SUM(P27:T27)) -> 12 | P27: 2 | Q27: 5 | R27: 5
B28: Tools | O28: Tools
B29: =IF(Tool_1="","-",Tool_1) -> Fräser 1 | C29: steel, iron | O29: =IF(Tool_1_Examp="","-",Tool_1_Examp) -> Fräser 1 | P29: steel, iron
B30: =IF(B29="-","",SUM(C30:G30)) -> 0.4 | C30: 0.4 | O30: =IF(O29="-","",SUM(P30:T30)) -> 0.4 | P30: 0.4
B31: =IF(Tool_2="","-",Tool_2) -> Fräser 2 | C31: steel, iron | O31: =IF(Tool_2_Examp="","-",Tool_2_Examp) -> Fräser 2 | P31: steel, iron
B32: =IF(B31="-","",SUM(C32:G32)) -> 0.3 | C32: 0.3 | O32: =IF(O31="-","",SUM(P32:T32)) -> 0.3 | P32: 0.3
B33: =IF(Tool_3="","-",Tool_3) -> Fräser 3 | C33: steel, iron | O33: =IF(Tool_3_Examp="","-",Tool_3_Examp) -> Fräser 3 | P33: steel, iron
B34: =IF(B33="-","",SUM(C34:G34)) -> 0.3 | C34: 0.3 | O34: =IF(O33="-","",SUM(P34:T34)) -> 0.3 | P34: 0.3
B35: =IF(Tool_4="","-",Tool_4) -> Bohrer 1 | C35: steel, iron | O35: =IF(Tool_4_Examp="","-",Tool_4_Examp) -> Bohrer 1 | P35: steel, iron
B36: =IF(B35="-","",SUM(C36:G36)) -> 0.2 | C36: 0.2 | O36: =IF(O35="-","",SUM(P36:T36)) -> 0.2 | P36: 0.2
B37: =IF(Tool_5="","-",Tool_5) -> Bohrer 2 | C37: steel, iron | O37: =IF(Tool_5_Examp="","-",Tool_5_Examp) -> Bohrer 2 | P37: steel, iron
B38: =IF(B37="-","",SUM(C38:G38)) -> 0.1 | C38: 0.1 | O38: =IF(O37="-","",SUM(P38:T38)) -> 0.1 | P38: 0.1
B39: =IF(Tool_6="","-",Tool_6) -> Bohrer 3 | C39: steel, iron | O39: =IF(Tool_6_Examp="","-",Tool_6_Examp) -> Bohrer 3 | P39: steel, iron
B40: =IF(B39="-","",SUM(C40:G40)) -> 0.1 | C40: 0.1 | O40: =IF(O39="-","",SUM(P40:T40)) -> 0.1 | P40: 0.1
B41: =IF(Tool_7="","-",Tool_7) -> Bohrer 4 | C41: steel, iron | O41: =IF(Tool_7_Examp="","-",Tool_7_Examp) -> Bohrer 4 | P41: steel, iron
B42: =IF(B41="-","",SUM(C42:G42)) -> 0.1 | C42: 0.1 | O42: =IF(O41="-","",SUM(P42:T42)) -> 0.1 | P42: 0.1
B43: =IF(Tool_8="","-",Tool_8) -> Gewindeschneider | C43: steel, iron | O43: =IF(Tool_8_Examp="","-",Tool_8_Examp) -> Gewindeschneider | P43: steel, iron
B44: =IF(B43="-","",SUM(C44:G44)) -> 0.1 | C44: 0.1 | O44: =IF(O43="-","",SUM(P44:T44)) -> 0.1 | P44: 0.1
F45: ="total product material: "&IF(SUM(C9:G27)>1500,ROUND(SUM(C9:G27)/1000,1)&" t",SUM(C9:G27)&" kg") -> total product material: 4.6 t | S45: ="total product material: "&IF(SUM(P9:T27)>1500,ROUND(SUM(P9:T27)/1000,1)&" t",SUM(P9:T27)&" kg") -> total product material: 4.6 t
A47: Purchasing & production | C47: in-house production depth [%] | D47: special production methods | N47: Purchasing & production | P47: in-house production depth [%] | Q47: special production methods
B48: =B$9 -> Machine structure | C48: 0.4 | O48: =O$9 -> Machine structure | P48: 0.4
B49: =B$11 -> Modules | O49: =O$11 -> Modules
B50: =IF(Module_1="","-",Module_1) -> Hauptspindel | C50: 0 | O50: =IF(Module_1_Examp="","-",Module_1_Examp) -> Hauptspindel | P50: 0
B51: =IF(Module_2="","-",Module_2) -> Achse X1 | C51: 0.1 | O51: =IF(Module_2_Examp="","-",Module_2_Examp) -> Achse X1 | P51: 0.1
B52: =IF(Module_3="","-",Module_3) -> Achse Y1 | C52: 0.1 | O52: =IF(Module_3_Examp="","-",Module_3_Examp) -> Achse Y1 | P52: 0.1
B53: =IF(Module_4="","-",Module_4) -> Achse Z1 | C53: 0.1 | O53: =IF(Module_4_Examp="","-",Module_4_Examp) -> Achse Z1 | P53: 0.1
B54: =IF(Module_5="","-",Module_5) -> Kabinett | C54: 0.5 | O54: =IF(Module_5_Examp="","-",Module_5_Examp) -> Kabinett | P54: 0.5
B55: =IF(Module_6="","-",Module_6) -> KSM Pumpe | C55: 0 | O55: =IF(Module_6_Examp="","-",Module_6_Examp) -> KSM Pumpe | P55: 0
B56: =IF(Module_7="","-",Module_7) -> Spindelkühlung | C56: 0 | O56: =IF(Module_7_Examp="","-",Module_7_Examp) -> Spindelkühlung | P56: 0
B57: =IF(Module_8="","-",Module_8) -> Sinumerik | C57: 0.6 | O57: =IF(Module_8_Examp="","-",Module_8_Examp) -> Sinumerik | P57: 0.6
B58: =B$28 -> Tools | O58: =O$28 -> Tools
B59: =IF(Tool_1="","-",Tool_1) -> Fräser 1 | C59: 0 | O59: =IF(Tool_1_Examp="","-",Tool_1_Examp) -> Fräser 1 | P59: 0
B60: =IF(Tool_2="","-",Tool_2) -> Fräser 2 | C60: 0 | O60: =IF(Tool_2_Examp="","-",Tool_2_Examp) -> Fräser 2 | P60: 0
B61: =IF(Tool_3="","-",Tool_3) -> Fräser 3 | C61: 0 | O61: =IF(Tool_3_Examp="","-",Tool_3_Examp) -> Fräser 3 | P61: 0
B62: =IF(Tool_4="","-",Tool_4) -> Bohrer 1 | C62: 1 | O62: =IF(Tool_4_Examp="","-",Tool_4_Examp) -> Bohrer 1 | P62: 1
B63: =IF(Tool_5="","-",Tool_5) -> Bohrer 2 | C63: 1 | O63: =IF(Tool_5_Examp="","-",Tool_5_Examp) -> Bohrer 2 | P63: 1
B64: =IF(Tool_6="","-",Tool_6) -> Bohrer 3 | C64: 1 | O64: =IF(Tool_6_Examp="","-",Tool_6_Examp) -> Bohrer 3 | P64: 1
B65: =IF(Tool_7="","-",Tool_7) -> Bohrer 4 | C65: 0 | O65: =IF(Tool_7_Examp="","-",Tool_7_Examp) -> Bohrer 4 | P65: 0
B66: =IF(Tool_8="","-",Tool_8) -> Gewindeschneider | C66: 0.1 | O66: =IF(Tool_8_Examp="","-",Tool_8_Examp) -> Gewindeschneider | P66: 0.1
F67: =IFERROR(IF(AVERAGE(C48:C66)=1,"complete in-house production",IF(AVERAGE(C48:C66)=0,"no in-house production","avg. in-house prod. depth: "&ROUND(AVERAGE(C48:C66)*100,0)&"%")),"") -> avg. in-house prod. depth: 29% | S67: =IFERROR(IF(AVERAGE(P48:P66)=1,"complete in-house production",IF(AVERAGE(P48:P66)=0,"no in-house production","avg. in-house prod. depth: "&ROUND(AVERAGE(P48:P66)*100,0)&"%")),"") -> avg. in-house prod. depth: 29%
A69: Packaging | C69: =TRANSPOSE(KEA.Packaging.Name) -> wood | D69: cardboard | E69: plastic | N69: Packaging | P69: =TRANSPOSE(KEA.Packaging.Name) -> wood | Q69: cardboard | R69: plastic
B70: =B$9 -> Machine structure | C70: 100 | D70: 10 | E70: 10 | O70: =O$9 -> Machine structure | P70: 100 | Q70: 10 | R70: 10
B71: =B$11 -> Modules | O71: =O$11 -> Modules
B72: =IF(Module_1="","-",Module_1) -> Hauptspindel | O72: =IF(Module_1_Examp="","-",Module_1_Examp) -> Hauptspindel
B73: =IF(Module_2="","-",Module_2) -> Achse X1 | O73: =IF(Module_2_Examp="","-",Module_2_Examp) -> Achse X1
B74: =IF(Module_3="","-",Module_3) -> Achse Y1 | O74: =IF(Module_3_Examp="","-",Module_3_Examp) -> Achse Y1
B75: =IF(Module_4="","-",Module_4) -> Achse Z1 | O75: =IF(Module_4_Examp="","-",Module_4_Examp) -> Achse Z1
B76: =IF(Module_5="","-",Module_5) -> Kabinett | O76: =IF(Module_5_Examp="","-",Module_5_Examp) -> Kabinett
B77: =IF(Module_6="","-",Module_6) -> KSM Pumpe | O77: =IF(Module_6_Examp="","-",Module_6_Examp) -> KSM Pumpe
B78: =IF(Module_7="","-",Module_7) -> Spindelkühlung | C78: 20 | D78: 1 | E78: 1 | O78: =IF(Module_7_Examp="","-",Module_7_Examp) -> Spindelkühlung | P78: 20 | Q78: 1 | R78: 1
B79: =IF(Module_8="","-",Module_8) -> Sinumerik | O79: =IF(Module_8_Examp="","-",Module_8_Examp) -> Sinumerik
B80: =B$28 -> Tools | O80: =O$28 -> Tools
B81: =IF(Tool_1="","-",Tool_1) -> Fräser 1 | D81: 0.1 | E81: 0.2 | O81: =IF(Tool_1_Examp="","-",Tool_1_Examp) -> Fräser 1 | Q81: 0.1 | R81: 0.2
B82: =IF(Tool_2="","-",Tool_2) -> Fräser 2 | D82: 0.1 | E82: 0.2 | O82: =IF(Tool_2_Examp="","-",Tool_2_Examp) -> Fräser 2 | Q82: 0.1 | R82: 0.2
B83: =IF(Tool_3="","-",Tool_3) -> Fräser 3 | D83: 0.1 | E83: 0.2 | O83: =IF(Tool_3_Examp="","-",Tool_3_Examp) -> Fräser 3 | Q83: 0.1 | R83: 0.2
B84: =IF(Tool_4="","-",Tool_4) -> Bohrer 1 | D84: 0.1 | E84: 0.2 | O84: =IF(Tool_4_Examp="","-",Tool_4_Examp) -> Bohrer 1 | Q84: 0.1 | R84: 0.2
B85: =IF(Tool_5="","-",Tool_5) -> Bohrer 2 | D85: 0.1 | E85: 0.2 | O85: =IF(Tool_5_Examp="","-",Tool_5_Examp) -> Bohrer 2 | Q85: 0.1 | R85: 0.2
B86: =IF(Tool_6="","-",Tool_6) -> Bohrer 3 | D86: 0.1 | E86: 0.2 | O86: =IF(Tool_6_Examp="","-",Tool_6_Examp) -> Bohrer 3 | Q86: 0.1 | R86: 0.2
B87: =IF(Tool_7="","-",Tool_7) -> Bohrer 4 | D87: 0.1 | E87: 0.2 | O87: =IF(Tool_7_Examp="","-",Tool_7_Examp) -> Bohrer 4 | Q87: 0.1 | R87: 0.2
B88: =IF(Tool_8="","-",Tool_8) -> Gewindeschneider | D88: 0.1 | E88: 0.2 | O88: =IF(Tool_8_Examp="","-",Tool_8_Examp) -> Gewindeschneider | Q88: 0.1 | R88: 0.2
F89: ="total packaging material: "&IF(SUM(C70:E88)>1500,SUM(C70:E88)/1000&" t",SUM(C70:E88)&" kg") -> total packaging material: 144.4 kg | S89: ="total packaging material: "&IF(SUM(P70:R88)>1500,SUM(P70:R88)/1000&" t",SUM(P70:R88)&" kg") -> total packaging material: 144.4 kg
A91: Transportation | C91: =TRANSPOSE(KEA.Transportation.Name) -> lorry | D91: ship | E91: car | F91: train | G91: airplane | N91: Transportation | P91: =TRANSPOSE(KEA.Transportation.Name) -> lorry | Q91: ship | R91: car | S91: train | T91: airplane
B92: =B$9 -> Machine structure | C92: 100 | D92: 12000 | E92: 0 | F92: 0 | G92: 0 | O92: =O$9 -> Machine structure | P92: 100 | Q92: 12000 | R92: 0 | S92: 0 | T92: 0
B93: =B$11 -> Modules | O93: =O$11 -> Modules
B94: =IF(Module_1="","-",Module_1) -> Hauptspindel | C94: 100 | D94: 12000 | E94: 0 | F94: 0 | G94: 0 | O94: =IF(Module_1_Examp="","-",Module_1_Examp) -> Hauptspindel | P94: 100 | Q94: 12000 | R94: 0 | S94: 0 | T94: 0
B95: =IF(Module_2="","-",Module_2) -> Achse X1 | C95: 100 | D95: 12000 | E95: 0 | F95: 0 | G95: 0 | O95: =IF(Module_2_Examp="","-",Module_2_Examp) -> Achse X1 | P95: 100 | Q95: 12000 | R95: 0 | S95: 0 | T95: 0
B96: =IF(Module_3="","-",Module_3) -> Achse Y1 | C96: 100 | D96: 12000 | E96: 0 | F96: 0 | G96: 0 | O96: =IF(Module_3_Examp="","-",Module_3_Examp) -> Achse Y1 | P96: 100 | Q96: 12000 | R96: 0 | S96: 0 | T96: 0
B97: =IF(Module_4="","-",Module_4) -> Achse Z1 | C97: 100 | D97: 12000 | E97: 0 | F97: 0 | G97: 0 | O97: =IF(Module_4_Examp="","-",Module_4_Examp) -> Achse Z1 | P97: 100 | Q97: 12000 | R97: 0 | S97: 0 | T97: 0
B98: =IF(Module_5="","-",Module_5) -> Kabinett | C98: 100 | D98: 12000 | E98: 0 | F98: 0 | G98: 0 | O98: =IF(Module_5_Examp="","-",Module_5_Examp) -> Kabinett | P98: 100 | Q98: 12000 | R98: 0 | S98: 0 | T98: 0
B99: =IF(Module_6="","-",Module_6) -> KSM Pumpe | C99: 100 | D99: 12000 | E99: 0 | F99: 0 | G99: 0 | O99: =IF(Module_6_Examp="","-",Module_6_Examp) -> KSM Pumpe | P99: 100 | Q99: 12000 | R99: 0 | S99: 0 | T99: 0
B100: =IF(Module_7="","-",Module_7) -> Spindelkühlung | C100: 100 | D100: 12000 | E100: 0 | F100: 0 | G100: 0 | O100: =IF(Module_7_Examp="","-",Module_7_Examp) -> Spindelkühlung | P100: 100 | Q100: 12000 | R100: 0 | S100: 0 | T100: 0
B101: =IF(Module_8="","-",Module_8) -> Sinumerik | C101: 100 | D101: 0 | E101: 0 | F101: 0 | G101: 10000 | O101: =IF(Module_8_Examp="","-",Module_8_Examp) -> Sinumerik | P101: 100 | Q101: 0 | R101: 0 | S101: 0 | T101: 10000
B102: =B$28 -> Tools | O102: =O$28 -> Tools
B103: =IF(Tool_1="","-",Tool_1) -> Fräser 1 | E103: 500 | G103: 5000 | O103: =IF(Tool_1_Examp="","-",Tool_1_Examp) -> Fräser 1 | R103: 500 | T103: 5000
B104: =IF(Tool_2="","-",Tool_2) -> Fräser 2 | E104: 500 | G104: 5000 | O104: =IF(Tool_2_Examp="","-",Tool_2_Examp) -> Fräser 2 | R104: 500 | T104: 5000
B105: =IF(Tool_3="","-",Tool_3) -> Fräser 3 | E105: 500 | G105: 5000 | O105: =IF(Tool_3_Examp="","-",Tool_3_Examp) -> Fräser 3 | R105: 500 | T105: 5000
B106: =IF(Tool_4="","-",Tool_4) -> Bohrer 1 | D106: 12000 | E106: 500 | O106: =IF(Tool_4_Examp="","-",Tool_4_Examp) -> Bohrer 1 | Q106: 12000 | R106: 500
B107: =IF(Tool_5="","-",Tool_5) -> Bohrer 2 | D107: 12000 | E107: 500 | O107: =IF(Tool_5_Examp="","-",Tool_5_Examp) -> Bohrer 2 | Q107: 12000 | R107: 500
B108: =IF(Tool_6="","-",Tool_6) -> Bohrer 3 | D108: 12000 | E108: 500 | O108: =IF(Tool_6_Examp="","-",Tool_6_Examp) -> Bohrer 3 | Q108: 12000 | R108: 500
B109: =IF(Tool_7="","-",Tool_7) -> Bohrer 4 | E109: 500 | G109: 5000 | O109: =IF(Tool_7_Examp="","-",Tool_7_Examp) -> Bohrer 4 | R109: 500 | T109: 5000
B110: =IF(Tool_8="","-",Tool_8) -> Gewindeschneider | D110: 12000 | E110: 500 | O110: =IF(Tool_8_Examp="","-",Tool_8_Examp) -> Gewindeschneider | Q110: 12000 | R110: 500
F111: ="total transportation: "&IF(SUM(C92:G92)<10000,SUM(C92:G92)&" km",ROUND(SUM(C92:G92)/40000,1)&"x around the globe") -> total transportation: 0.3x around the globe | S111: ="total transportation: "&IF(SUM(P92:T92)<10000,SUM(P92:T92)&" km",ROUND(SUM(P92:T92)/40000,1)&"x around the globe") -> total transportation: 0.3x around the globe
A113: Commissioning | B113: Building materials | N113: Commissioning | O113: Building materials
B114: material | C114: amount [kg] | O114: material | P114: amount [kg]
B115: =KEA.Construction.Name -> brick, concret | C115: 100 | O115: =KEA.Construction.Name -> brick, concret | P115: 100
B116: cement | C116: 1000 | O116: cement | P116: 1000
B117: sand, grevel | C117: 500 | O117: sand, grevel | P117: 500
B118: steel, iron | C118: 1000 | O118: steel, iron | P118: 1000
B119: type of infrastructure | C119: specification | O119: type of infrastructure | P119: specification
B120: =IF(Infrastructure_1="","-",Infrastructure_1) -> Air conditioning | O120: =IF(Infrastructure_1="","-",Infrastructure_1) -> Air conditioning
B121: =IF(Infrastructure_2="","-",Infrastructure_2) -> Heating (fluid) | O121: =IF(Infrastructure_2="","-",Infrastructure_2) -> Heating (fluid)
B122: =IF(Infrastructure_3="","-",Infrastructure_3) -> Cooling (fluid) | O122: =IF(Infrastructure_3="","-",Infrastructure_3) -> Cooling (fluid)
B123: =IF(Infrastructure_4="","-",Infrastructure_4) -> Lubrication centre | O123: =IF(Infrastructure_4="","-",Infrastructure_4) -> Lubrication centre
F124: ="additional material: "&ROUND(SUM(C115:C118)/1000,1)&"t" -> additional material: 2.6t | S124: ="additional material: "&ROUND(SUM(P115:P118)/1000,1)&"t" -> additional material: 2.6t
A126: Operation | B126: product lifetime [y] | C126: 5 | N126: Operation | O126: product lifetime [y] | P126: 2
B128: Energy | O128: Energy
C129: Rated / installed power and average consumption during machine states. The following state names are used: - Operation: The machine is processing one or multiple parts - Ready: The machine is not processing, but can start processing within seconds. - Standby: The machine is in a reduced power state. Only basic modules are running. A state transition into "Ready" is only possible within minutes or hours (warm-up). - Off: The machine is shutdown (main switch off or power line disconnected) | P129: Rated / installed power and average consumption during machine states. The following state names are used: - Operation: The machine is processing one or multiple parts - Ready: The machine is not processing, but can start processing within seconds. - Standby: The machine is in a reduced power state. Only basic modules are running. A state transition into "Ready" is only possible within minutes or hours (warm-up). - Off: The machine is shutdown (main switch off or power line disconnected)
C130: installed power [W] | D130: Operation [W] | E130: Ready [W] | F130: Standby [W] | G130: Off [W] | P130: installed power [W] | Q130: Operation [W] | R130: Ready [W] | S130: Standby [W] | T130: Off [W]
B131: =B$9 -> Machine structure | O131: =O$9 -> Machine structure | P131: 2000 | Q131: 2000 | R131: 2000 | S131: 2000 | T131: 0
B132: =B$11 -> Modules | O132: =O$11 -> Modules
B133: =IF(Module_1="","-",Module_1) -> Hauptspindel | C133: 70000 | D133: 12000 | E133: 1000 | F133: 0 | G133: 0 | O133: =IF(Module_1_Examp="","-",Module_1_Examp) -> Hauptspindel | P133: 70000 | Q133: 12000 | R133: 1000 | S133: 0 | T133: 0
B134: =IF(Module_2="","-",Module_2) -> Achse X1 | C134: 10000 | D134: 4000 | E134: 200 | F134: 0 | G134: 0 | O134: =IF(Module_2_Examp="","-",Module_2_Examp) -> Achse X1 | P134: 10000 | Q134: 4000 | R134: 200 | S134: 0 | T134: 0
B135: =IF(Module_3="","-",Module_3) -> Achse Y1 | C135: 10000 | D135: 4000 | E135: 200 | F135: 0 | G135: 0 | O135: =IF(Module_3_Examp="","-",Module_3_Examp) -> Achse Y1 | P135: 10000 | Q135: 4000 | R135: 200 | S135: 0 | T135: 0
B136: =IF(Module_4="","-",Module_4) -> Achse Z1 | C136: 5000 | D136: 800 | E136: 200 | F136: 0 | G136: 0 | O136: =IF(Module_4_Examp="","-",Module_4_Examp) -> Achse Z1 | P136: 5000 | Q136: 800 | R136: 200 | S136: 0 | T136: 0
B137: =IF(Module_5="","-",Module_5) -> Kabinett | C137: 5000 | D137: 4000 | E137: 2500 | F137: 2500 | G137: 0 | O137: =IF(Module_5_Examp="","-",Module_5_Examp) -> Kabinett | P137: 5000 | Q137: 4000 | R137: 2500 | S137: 2500 | T137: 0
B138: =IF(Module_6="","-",Module_6) -> KSM Pumpe | C138: 7000 | D138: 7000 | E138: 0 | F138: 0 | G138: 0 | O138: =IF(Module_6_Examp="","-",Module_6_Examp) -> KSM Pumpe | P138: 7000 | Q138: 7000 | R138: 0 | S138: 0 | T138: 0
B139: =IF(Module_7="","-",Module_7) -> Spindelkühlung | C139: 4000 | D139: 2000 | E139: 1800 | F139: 1800 | G139: 0 | O139: =IF(Module_7_Examp="","-",Module_7_Examp) -> Spindelkühlung | P139: 4000 | Q139: 2000 | R139: 1800 | S139: 1800 | T139: 0
B140: =IF(Module_8="","-",Module_8) -> Sinumerik | C140: 3000 | D140: 200 | E140: 200 | F140: 200 | G140: 100 | O140: =IF(Module_8_Examp="","-",Module_8_Examp) -> Sinumerik | P140: 3000 | Q140: 200 | R140: 200 | S140: 200 | T140: 100
B141: Total Power | C141: =SUM(C131:C140) -> 114000 | D141: =SUM(D131:D140) -> 34000 | E141: 6100 | F141: 4500 | G141: 100 | P141: =SUM(P131:P140) -> 116000 | Q141: =SUM(Q131:Q140) -> 36000 | R141: 8100 | S141: 6500 | T141: 100
B143: Resources (consumables) | O143: Consumables
B144: In order to secure the process and machine conditions, operational materials are required. The requirement of materials may depend on the operational state of the machine. | O144: In order to secure the process and machine conditions, operational materials are required. The requirement of materials may depend on the operational state of the machine.
C145: Throughput | D145: When | P145: Throughput | Q145: When
B146: =KEA.Process.Name -> Oil (lubricant) | C146: 0.001 | D146: Operation only | E146: Lubricant required by the machine (no reuse) | O146: =KEA.Process.Name -> Oil (lubricant) | P146: 0.001 | Q146: Operation only
B147: Pressured air | C147: 2 | D147: Ready and higher | E147: Compressed air flow rate at standard conditions (20°C, 1 bar) | O147: Pressured air | P147: 2 | Q147: If machine is on
B148: Gas | E148: Process gas, e.g. nitrogen | O148: Gas
B149: Water | C149: 60 | D149: Operation only | E149: Tap water consumed by the machine | O149: Water | P149: 60 | Q149: Operation only
B151: Services | O151: Services
B152: Number of services | C152: 10 | O152: Number of services | P152: 10
B153: Place | C153: local | O153: Place | P153: local
B154: Transportation distance | C154: 200 | O154: Transportation distance | P154: 200
B155: Transportation weight | C155: =IF(C153="local",0.005*SUM(C10:G27),IF(C153="external",SUM(C10:G27),"")) -> 23.1695 | D155: =IF(C153="local","0.5% of total mass",IF(C153="external","Complete machine","")) -> 0.5% of total mass | O155: Transportation weight | P155: =IF(P153="local",0.005*SUM(P10:T27),IF(P153="external",SUM(P10:T27),"")) -> 23.1695 | Q155: =IF(P153="local","0.5% of total mass",IF(P153="external","Complete machine","")) -> 0.5% of total mass
F156: ="installed power: "&IF(SUM(C131:C140)<1500,SUM(C131:C140)&" W",ROUND(SUM(C131:C140)/1000,0)&" kW") -> installed power: 114 kW | S156: ="installed power: "&IF(SUM(P131:P140)<1500,SUM(P131:P140)&" W",ROUND(SUM(P131:P140)/1000,0)&" kW") -> installed power: 116 kW
A158: Recycling | C158: recycling quota [%] | N158: Recycling | P158: recycling quota [%]
B159: =B$9 -> Machine structure | C159: 0.9 | O159: =O$9 -> Machine structure | P159: 0.9
B160: =B$11 -> Modules | O160: =O$11 -> Modules
B161: =IF(Module_1="","-",Module_1) -> Hauptspindel | C161: 0.9 | O161: =IF(Module_1_Examp="","-",Module_1_Examp) -> Hauptspindel | P161: 0.9
B162: =IF(Module_2="","-",Module_2) -> Achse X1 | C162: 0.8 | O162: =IF(Module_2_Examp="","-",Module_2_Examp) -> Achse X1 | P162: 0.8
B163: =IF(Module_3="","-",Module_3) -> Achse Y1 | C163: 0.8 | O163: =IF(Module_3_Examp="","-",Module_3_Examp) -> Achse Y1 | P163: 0.8
B164: =IF(Module_4="","-",Module_4) -> Achse Z1 | C164: 0.8 | O164: =IF(Module_4_Examp="","-",Module_4_Examp) -> Achse Z1 | P164: 0.8
B165: =IF(Module_5="","-",Module_5) -> Kabinett | C165: 0.8 | O165: =IF(Module_5_Examp="","-",Module_5_Examp) -> Kabinett | P165: 0.8
B166: =IF(Module_6="","-",Module_6) -> KSM Pumpe | C166: 0.9 | O166: =IF(Module_6_Examp="","-",Module_6_Examp) -> KSM Pumpe | P166: 0.9
B167: =IF(Module_7="","-",Module_7) -> Spindelkühlung | C167: 0.9 | O167: =IF(Module_7_Examp="","-",Module_7_Examp) -> Spindelkühlung | P167: 0.9
B168: =IF(Module_8="","-",Module_8) -> Sinumerik | C168: 0.6 | O168: =IF(Module_8_Examp="","-",Module_8_Examp) -> Sinumerik | P168: 0.6
B169: =B$28 -> Tools | O169: =O$28 -> Tools
B170: =IF(Tool_1="","-",Tool_1) -> Fräser 1 | C170: 0 | O170: =IF(Tool_1_Examp="","-",Tool_1_Examp) -> Fräser 1 | P170: 0
B171: =IF(Tool_2="","-",Tool_2) -> Fräser 2 | C171: 0 | O171: =IF(Tool_2_Examp="","-",Tool_2_Examp) -> Fräser 2 | P171: 0
B172: =IF(Tool_3="","-",Tool_3) -> Fräser 3 | C172: 0 | O172: =IF(Tool_3_Examp="","-",Tool_3_Examp) -> Fräser 3 | P172: 0
B173: =IF(Tool_4="","-",Tool_4) -> Bohrer 1 | C173: 0 | O173: =IF(Tool_4_Examp="","-",Tool_4_Examp) -> Bohrer 1 | P173: 0
B174: =IF(Tool_5="","-",Tool_5) -> Bohrer 2 | C174: 1 | O174: =IF(Tool_5_Examp="","-",Tool_5_Examp) -> Bohrer 2 | P174: 1
B175: =IF(Tool_6="","-",Tool_6) -> Bohrer 3 | C175: 0 | O175: =IF(Tool_6_Examp="","-",Tool_6_Examp) -> Bohrer 3 | P175: 0
B176: =IF(Tool_7="","-",Tool_7) -> Bohrer 4 | C176: 0 | O176: =IF(Tool_7_Examp="","-",Tool_7_Examp) -> Bohrer 4 | P176: 0
B177: =IF(Tool_8="","-",Tool_8) -> Gewindeschneider | C177: 1 | O177: =IF(Tool_8_Examp="","-",Tool_8_Examp) -> Gewindeschneider | P177: 1
F178: =IFERROR(IF(AVERAGE(C159:C177)=1,"full recycling",IF(AVERAGE(C159:C177)=0,"no recycling",ROUND(AVERAGE(C159:C177)*100,0)&"% recycl.")),"") -> 55% recycl. | S178: =IFERROR(IF(AVERAGE(P159:P177)=1,"full recycling",IF(AVERAGE(P159:P177)=0,"no recycling",ROUND(AVERAGE(P159:P177)*100,0)&"% recycl.")),"") -> 55% recycl.

Sheet Use
D1: =Version -> ET-MTED-V3R1
A2: Machine Schedule | K2: Machine Schedule
K3: EXAMPLE | O3: COMMENTS
A5: Process time | B5: General description of an intended process running on the machine | E5: Operation | F5: Ready | G5: Standby | H5: Off | K5: Process time | L5: General description of an intended process running on the machine | P5: Operation | Q5: Ready | R5: Standby | S5: Off
E6: =C7 -> 00:04:30 | P6: =M7 -> 00:06:00
B7: Average cycle time [hh:mm:ss] | C7: 0.003125 | F7: =C8*C9 -> 00:00:10 | L7: Average cycle time [hh:mm:ss] | M7: 00:06:00 | O7: Average cycle time is 6 minutes. This time does include the productive part of the cycle only (no tool changes) | Q7: =M8 -> 00:00:12
B8: Average time for one tool change [hh:mm:ss] | C8: 2.314814815e-05 | L8: Average tool change time [hh:mm:ss] | M8: 00:00:12 | O8: The tool changes for during one process take 1 minute of time, there are 5 tool changes in total
B9: Number of tool changes per cycle | C9: 5 | L9: Number of tool changes | M9: 5
B10: Batch size | C10: 200 | L10: Batch size | M10: 200 | O10: With one setting, a batch of 200 equal products is manufactured
B11: Setting time [hh:mm:ss] | C11: 0.3333333333 | E11: =IF($C12=E5,$C11/$C10,0) -> 00:00:00 | F11: =IF($C12=F5,$C11/$C10,0) -> 00:02:24 | G11: 00:00:00 | H11: 00:00:00 | L11: Setting time [hh:mm:ss] | M11: 08:00:00 | O11: To set up the machine for the batch, a day of work is required | P11: =IF($M12=P5,$M11/$M10,0) -> 00:00:00 | Q11: =IF($M12=Q5,$M11/$M10,0) -> 00:02:24 | R11: =IF($M12=R5,$M11/$M10,0) -> 00:00:00 | S11: =IF($M12=S5,$M11/$M10,0) -> 00:00:00
B12: Machine state during setting | C12: Ready | L12: Machine state during setting | M12: Ready | O12: During the setting, the machine state is "Ready". So intermediate Operation is possible
B13: Rework time | C13: =C65*C66 -> 0.0001041666667
B14: Part time | C14: =C7+C8*C9+IF(C10=0,0,C11/C10)+C13 -> 0.005011574074 | E14: =E6+E11 -> 00:04:30 | F14: =F7+F11 -> 00:02:34 | G14: =G11 -> 00:00:00 | H14: =H11 -> 00:00:00 | L14: Part time | M14: =M7+M8+M11/M10 -> 00:08:36 | O14: Given the information above, an average part time of 9.5 minutes results | P14: =P6+P11 -> 00:06:00 | Q14: =Q7+Q11 -> 00:02:36 | R14: =R11 -> 00:00:00 | S14: =S11 -> 00:00:00
A16: Day | B16: Characterization of typical working day | K16: Day | L16: Characterization of typical working day
B18: Number of shifts per day | C18: 2.5 | E18: =8*$C18*(E14/$C14) -> 12.47113164 | F18: =8*$C18*(F14/$C14) -> 7.113163972 | G18: =8*$C18*(G14/$C14) -> 0 | H18: 0 | L18: Number of shifts per day | M18: 2.5 | O18: Two shifts per day take place. After the late shift, the machine runs until the job has finished (about 4 hours) | P18: =8*$M18*(P14/$M14) -> 13.95348837 | Q18: =8*$M18*(Q14/$M14) -> 6.046511628 | R18: 0 | S18: =8*$M18*(S14/$M14) -> 0
B19: Machine state during off duty | C19: Standby | E19: =IF($C19=E$5,24-8*$C18,0) -> 0 | F19: =IF($C19=F$5,24-8*$C18,0) -> 0 | G19: 4 | H19: 0 | L19: Machine state during off duty | M19: Ready | O19: After the machine finished the job, it stays in "ready" state | P19: =IF($M19=P$5,24-8*$M18,0) -> 0 | Q19: =IF($M19=Q$5,24-8*$M18,0) -> 4 | R19: 0 | S19: 0
E20: =SUM(E18:E19) -> 12.47113164 | F20: =SUM(F18:F19) -> 7.113163972 | G20: 4 | H20: 0 | P20: =SUM(P18:P19) -> 13.95348837 | Q20: =SUM(Q18:Q19) -> 10.04651163 | R20: 0 | S20: 0
A21: Week | B21: Characterization of typical working week | K21: Week | L21: Characterization of typical working week
B24: Number of workdays | C24: 5 | E24: =$C24*E20 -> 62.3556582 | F24: =$C24*F20 -> 35.56581986 | G24: 20 | H24: 0 | L24: Number of workdays | M24: 5 | O24: The machine is only productive at workdays | P24: =$M24*P20 -> 69.76744186 | Q24: =$M24*Q20 -> 50.23255814 | R24: 0 | S24: 0
B25: Machine state during weekend | C25: Off | E25: =IF($C25=E$5,(7-$C24)*24,0) -> 0 | F25: =IF($C25=F$5,(7-$C24)*24,0) -> 0 | G25: 0 | H25: 48 | L25: Machine state during weekend | M25: Standby | O25: During the weekends the machine stays in the "standby" state | P25: =IF($M25=P$5,(7-$M24)*24,0) -> 0 | Q25: =IF($M25=Q$5,(7-$M24)*24,0) -> 0 | R25: 48 | S25: 0
E26: =SUM(E24:E25) -> 62.3556582 | F26: =SUM(F24:F25) -> 35.56581986 | G26: =SUM(G24:G25) -> 20 | H26: =SUM(H24:H25) -> 48 | P26: =SUM(P24:P25) -> 69.76744186 | Q26: =SUM(Q24:Q25) -> 50.23255814 | R26: 48 | S26: 0
A27: Year | B27: Characterisation of a typical year | K27: Year | L27: Characterisation of a typical year
B29: Number of productive weeks | C29: 47 | E29: =$C29*E26 -> 2930.715935 | F29: =$C29*F26 -> 1671.593533 | G29: 940 | H29: 2256 | L29: Number of productive weeks | M29: 47 | O29: During 5 weeks per year, no operation takes place due to holyday | P29: =$M29*P26 -> 3279.069767 | Q29: =$M29*Q26 -> 2360.930233 | R29: =$M29*R26 -> 2256 | S29: 0
B30: Machine state during holiday | C30: Off | E30: =IF($C30=E$5,(52-$C29)*24*7,0) -> 0 | F30: =IF($C30=F$5,(52-$C29)*24*7,0) -> 0 | G30: 0 | H30: 840 | L30: Machine state during holiday | M30: Off | O30: During this holyday, the machine is shut down | P30: =IF($M30=P$5,(52-$M29)*24*7,0) -> 0 | Q30: =IF($M30=Q$5,(52-$M29)*24*7,0) -> 0 | R30: 0 | S30: =IF($M30=S$5,(52-$M29)*24*7,0) -> 840
E31: =SUM(E29:E30) -> 2930.715935 | F31: =SUM(F29:F30) -> 1671.593533 | G31: =SUM(G29:G30) -> 940 | H31: =SUM(H29:H30) -> 3096 | P31: =SUM(P29:P30) -> 3279.069767 | Q31: =SUM(Q29:Q30) -> 2360.930233 | R31: 2256 | S31: 840
A32: Distribution | B32: Resulting time distribution over the four machine states | K32: Distribution | L32: Resulting time distribution over the four machine states
B34: =TRANSPOSE(E5:H5) -> Operation | C34: =TRANSPOSE(E31:H31)*IF(SUM(E31:H31)=0,0,1/SUM(E31:H31)) -> 0.3392696159 | L34: =TRANSPOSE(P5:S5) -> Operation | M34: =TRANSPOSE(P31:S31)/SUM(P31:S31) -> 0.3753513928
B35: Ready | C35: 0.1935093365 | L35: Ready | M35: 0.2702530028
B36: Standby | C36: 0.1088175879 | L36: Standby | M36: 0.2582417582
B37: Off | C37: 0.3584034597 | L37: Off | M37: 0.09615384615
D40: =Version -> ET-MTED-V3R1
A41: Machine Operation | K41: Machine Operation
A43: Tools | B43: Tools are required in a certain number dependent on the time in use and the holding time. Given on certain key values, the total number of tools required during machine use is calculated. | K43: Tools | L43: Tools are required in a certain number dependent on the time in use and the holding time. Given on certain key values, the total number of tools required during machine use is calculated.
B45: Name | C45: Time fraction | D45: holding time [min] | E45: Fraction | F45: Time | L45: Name | M45: Time fraction | N45: holding time [min] | P45: Fraction | Q45: Time
B46: =Tools -> Fräser 1 | C46: 0.2 | D46: 250 | E46: =C46/SUM(C$46:C$53) -> 0.2666666667 | F46: =MachineLifetime*365*24*60*C$34*C46 -> 178320.1101 | L46: Fräser 1 | M46: 0.2 | N46: 250 | O46: During operation, different tools are used. The relative time distribution and holding times are estimated based on business statistics | P46: =M46/SUM(M$46:M$53) -> 0.2666666667 | Q46: =MachineLifetime*365*24*60*M$34*M46 -> 197284.6921
B47: Fräser 2 | C47: 0.2 | D47: 250 | E47: 0.2666666667 | F47: 178320.1101 | L47: Fräser 2 | M47: 0.2 | N47: 250 | P47: 0.2666666667 | Q47: 197284.6921
B48: Fräser 3 | C48: 0.05 | D48: 250 | E48: 0.06666666667 | F48: 44580.02753 | L48: Fräser 3 | M48: 0.05 | N48: 250 | P48: 0.06666666667 | Q48: 49321.17301
B49: Bohrer 1 | C49: 0.1 | D49: 250 | E49: 0.1333333333 | F49: 89160.05505 | L49: Bohrer 1 | M49: 0.1 | N49: 250 | P49: 0.1333333333 | Q49: 98642.34603
B50: Bohrer 2 | C50: 0.05 | D50: 250 | E50: 0.06666666667 | F50: 44580.02753 | L50: Bohrer 2 | M50: 0.05 | N50: 250 | P50: 0.06666666667 | Q50: 49321.17301
B51: Bohrer 3 | C51: 0.05 | D51: 250 | E51: 0.06666666667 | F51: 44580.02753 | L51: Bohrer 3 | M51: 0.05 | N51: 250 | P51: 0.06666666667 | Q51: 49321.17301
B52: Bohrer 4 | C52: 0.05 | D52: 250 | E52: 0.06666666667 | F52: 44580.02753 | L52: Bohrer 4 | M52: 0.05 | N52: 250 | P52: 0.06666666667 | Q52: 49321.17301
B53: Gewindeschneider | C53: 0.05 | D53: 250 | E53: 0.06666666667 | F53: 44580.02753 | L53: Gewindeschneider | M53: 0.05 | N53: 250 | P53: 0.06666666667 | Q53: 49321.17301
A55: Material | B55: During the use phase, the machine processes materials. In general part of the input material are installed in the output product, where the rest becomes scrap. To calculate this mass flows, the following key values are required. | K55: Material | L55: During the use phase, the machine processes materials. In general part of the input material are installed in the output product, where the rest becomes scrap. To calculate this mass flows, the following key values are required.
C56: Throughput | D56: Mass in final prod. | M56: Throughput | N56: Mass in final prod.
B57: steel, high-alloyed | C57: 6 | D57: 0.8 | L57: steel, high-alloyed | M57: 6 | N57: 0.8 | O57: The machine processes four materials at different rates. The mass installed in the product relative to the input mass is known from the amount of scrap material
B58: aluminium, copper, brass | C58: 1 | D58: 0.95 | L58: aluminium, copper, brass | M58: 1 | N58: 0.5
B59: steel, iron | C59: 10 | D59: 0.95 | L59: steel, iron | M59: 10 | N59: 0.95
B60: PE, PP, PET, Polyester | C60: 2 | D60: 0.99 | L60: PE, PP, PET, Polyester | M60: 2 | N60: 0.35
A62: Defects | B62: Amount of non conformant parts, relative to the total number of parts produced. Defects are manufactured parts, which do not fullfill the requirements and are thus scraped. Reworked parts are products needing additional machine time in orter to statisfy the reuqirements. | K62: Defects | L62: Amount of non conformant parts, relative to the total number of parts produced. Defects are manufactured parts, which do not fullfill the requirements and are thus scraped. Rework part are
B64: Defects (relative to the total number of parts) | C64: 0.005 | L64: Defects (relative to the total number of parts)
B65: Rework (relative to the total number of parts) | C65: 0.03
B66: Average re-work time per part | C66: 0.003472222222 | L66: Average re-work time per part
A68: Scrap | B68: Scrap material can be post-process in various ways. Dependent on the path selected, different amounts of energy are required. | K68: Scrap | L68: Scrap material can be post-process in various ways. Dependent on the path selected, different amounts of energy are required.
E69: Recycling | F69: Burning | G69: Land fill | H69: Energy | P69: Recycling | Q69: Burning | R69: Land fill | S69: Energy
B70: =IF(B57="","",B57) -> steel, high-alloyed | C70: Recycling | E70: =IF(C70=E$69,INDEX(KEA.General.RawMaterial,MATCH(B70,KEA.General.Name,0))+INDEX(KEA.General.Recycling,MATCH(B70,KEA.General.Name,0)),0) -> 4.67 | F70: =IF(C70=F$69,INDEX(KEA.General.RawMaterial,MATCH(B70,KEA.General.Name,0))-INDEX(KEA.General.Hu,MATCH(B70,KEA.General.Name,0)),0) -> 0 | G70: =IF(C70=G$69,INDEX(KEA.General.RawMaterial,MATCH(B70,KEA.General.Name,0)),0) -> 0 | H70: =SUM(E70:G70) -> 4.67 | L70: =IF(L57="","",L57) -> steel, high-alloyed | M70: Recycling | O70: The treatment of the scrap material depends on the raw material. A possible selection is shown. | P70: =IF(M70=P$69,INDEX(KEA.General.RawMaterial,MATCH(L70,KEA.General.Name,0))+INDEX(KEA.General.Recycling,MATCH(L70,KEA.General.Name,0)),0) -> 4.67 | Q70: =IF(M70=Q$69,INDEX(KEA.General.RawMaterial,MATCH(L70,KEA.General.Name,0))-INDEX(KEA.General.Hu,MATCH(L70,KEA.General.Name,0)),0) -> 0 | R70: =IF(M70=R$69,INDEX(KEA.General.RawMaterial,MATCH(L70,KEA.General.Name,0)),0) -> 0 | S70: =SUM(P70:R70) -> 4.67
B71: =IF(B58="","",B58) -> aluminium, copper, brass | C71: Recycling | E71: =IF(C71=E$69,INDEX(KEA.General.RawMaterial,MATCH(B71,KEA.General.Name,0))+INDEX(KEA.General.Recycling,MATCH(B71,KEA.General.Name,0)),0) -> 5.32 | F71: =IF(C71=F$69,INDEX(KEA.General.RawMaterial,MATCH(B71,KEA.General.Name,0))-INDEX(KEA.General.Hu,MATCH(B71,KEA.General.Name,0)),0) -> 0 | G71: =IF(C71=G$69,INDEX(KEA.General.RawMaterial,MATCH(B71,KEA.General.Name,0)),0) -> 0 | H71: =SUM(E71:G71) -> 5.32 | L71: =IF(L58="","",L58) -> aluminium, copper, brass | M71: Recycling | P71: =IF(M71=P$69,INDEX(KEA.General.RawMaterial,MATCH(L71,KEA.General.Name,0))+INDEX(KEA.General.Recycling,MATCH(L71,KEA.General.Name,0)),0) -> 5.32 | Q71: =IF(M71=Q$69,INDEX(KEA.General.RawMaterial,MATCH(L71,KEA.General.Name,0))-INDEX(KEA.General.Hu,MATCH(L71,KEA.General.Name,0)),0) -> 0 | R71: =IF(M71=R$69,INDEX(KEA.General.RawMaterial,MATCH(L71,KEA.General.Name,0)),0) -> 0 | S71: =SUM(P71:R71) -> 5.32
B72: =IF(B59="","",B59) -> steel, iron | C72: Land fill | E72: =IF(C72=E$69,INDEX(KEA.General.RawMaterial,MATCH(B72,KEA.General.Name,0))+INDEX(KEA.General.Recycling,MATCH(B72,KEA.General.Name,0)),0) -> 0 | F72: =IF(C72=F$69,INDEX(KEA.General.RawMaterial,MATCH(B72,KEA.General.Name,0))-INDEX(KEA.General.Hu,MATCH(B72,KEA.General.Name,0)),0) -> 0 | G72: =IF(C72=G$69,INDEX(KEA.General.RawMaterial,MATCH(B72,KEA.General.Name,0)),0) -> 2.41 | H72: 2.41 | L72: =IF(L59="","",L59) -> steel, iron | M72: Land fill | P72: =IF(M72=P$69,INDEX(KEA.General.RawMaterial,MATCH(L72,KEA.General.Name,0))+INDEX(KEA.General.Recycling,MATCH(L72,KEA.General.Name,0)),0) -> 0 | Q72: =IF(M72=Q$69,INDEX(KEA.General.RawMaterial,MATCH(L72,KEA.General.Name,0))-INDEX(KEA.General.Hu,MATCH(L72,KEA.General.Name,0)),0) -> 0 | R72: =IF(M72=R$69,INDEX(KEA.General.RawMaterial,MATCH(L72,KEA.General.Name,0)),0) -> 2.41 | S72: 2.41
B73: =IF(B60="","",B60) -> PE, PP, PET, Polyester | C73: Burning | E73: =IF(C73=E$69,INDEX(KEA.General.RawMaterial,MATCH(B73,KEA.General.Name,0))+INDEX(KEA.General.Recycling,MATCH(B73,KEA.General.Name,0)),0) -> 0 | F73: =IF(C73=F$69,INDEX(KEA.General.RawMaterial,MATCH(B73,KEA.General.Name,0))-INDEX(KEA.General.Hu,MATCH(B73,KEA.General.Name,0)),0) -> 2.91 | G73: =IF(C73=G$69,INDEX(KEA.General.RawMaterial,MATCH(B73,KEA.General.Name,0)),0) -> 0 | H73: 2.91 | L73: =IF(L60="","",L60) -> PE, PP, PET, Polyester | M73: Burning | P73: =IF(M73=P$69,INDEX(KEA.General.RawMaterial,MATCH(L73,KEA.General.Name,0))+INDEX(KEA.General.Recycling,MATCH(L73,KEA.General.Name,0)),0) -> 0 | Q73: =IF(M73=Q$69,INDEX(KEA.General.RawMaterial,MATCH(L73,KEA.General.Name,0))-INDEX(KEA.General.Hu,MATCH(L73,KEA.General.Name,0)),0) -> 2.91 | R73: =IF(M73=R$69,INDEX(KEA.General.RawMaterial,MATCH(L73,KEA.General.Name,0)),0) -> 0 | S73: 2.91

Sheet Infrastructure
E1: =Version -> ET-MTED-V3R1
A2: Infrastructure | R2: Infrastructure
R3: EXAMPLE
A5: Energy supply | B5: Characterizations about the electrical energy source used to supply the machine are required here | R5: Energy supply | S5: Characterizations about the electrical energy source used to supply the machine are required here
B7: Type of Energy source | C7: EU-Mix | S7: Type of Energy source | T7: CH-Mix
A10: Infrastructures | B10: Power demand and mode of operation for the infrastructure devices. As guideline, proposals for the power demand are given based on the machine parameters. Some of these proposals may require additional parameters. | R10: Infrastructures | S10: Power demand and mode of operation for the infrastructure devices. As guideline, proposals for the power demand are given based on the machine parameters.
B12: Building eff.-class | C12: A | S12: Building eff.-class | T12: C
B13: see: directive 2010/31/EU of the European parliament | C13: COP Air cond. | D13: =IF(C12="",0,INDEX(KEA.Building.COPAC,MATCH(C12,KEA.Building.Class,0))) -> 2.6 | S13: see: directive 2010/31/EU of the European parliament | T13: COP Air cond. | U13: 2.3
C14: COP water cooling | D14: =IF(C12="",0,INDEX(KEA.Building.COPWC,MATCH(C12,KEA.Building.Class,0))) -> 5.05 | T14: COP water cooling | U14: 4.45
J15: Operation only | K15: Ready and higher | L15: If machine is on | M15: Always | N15: Time
C16: power | D16: proposal | E16: running | J16: =MachineLifetime*365*24*SUM(Calculation!$D115:D115) -> 14860.00918 | K16: =MachineLifetime*365*24*SUM(Calculation!$D115:E115) -> 23335.71811 | L16: =MachineLifetime*365*24*SUM(Calculation!$D115:F115) -> 28101.92846 | M16: =MachineLifetime*365*24*SUM(Calculation!$D115:G115) -> 43800 | T16: power | U16: proposal | V16: running
B17: =Overview!B39 -> Air conditioning | C17: 4800 | D17: =MAX(0,SUMPRODUCT(Calculation!D115:G115,Calculation!D114:G114)*1000-D28/60*3500*(-D29+D30))/D13 -> 4756.189763 | E17: Always | F17: =Overview!C39 -> yes | J17: =IF($E17=J$15,J$16,0) -> 0 | K17: =IF($E17=K$15,K$16,0) -> 0 | L17: 0 | M17: 43800 | N17: =SUM(J17:M17) -> 43800 | S17: =Infrastructure_1 -> Air conditioning | T17: 500 | U17: 512 | V17: Always
C18: ="Assumption: All power supplied to the machine is transformed into heat. Heat released to the shop floor (i.e. by convection or by a water-air heat exchanger) must be removed by the shop floor climatization system. This process has typically an COP of "&D13 -> Assumption: All power supplied to the machine is transformed into heat. Heat released to the shop floor (i.e. by convection or by a water-air heat exchanger) must be removed by the shop floor climatization system. This process has typically an COP of 2.6 | T18: Assumption: All power supplied to the machine is transformed into heat. Heat released to the shop floor (i.e. by convection or by a water-air heat exchanger) must be removed by the shop floor climatization system. This process has typically an COP of 2.5 (2015).
B20: =Overview!B40 -> Heating (fluid) | D20: =D22/60*3500*(D23-D24)/0.8 -> 0 | F20: =Overview!C40 -> no | J20: =IF($E20=J$15,J$16,0) -> 0 | K20: 0 | L20: 0 | M20: 0 | N20: =SUM(J20:M20) -> 0 | S20: =Infrastructure_2 -> Heating (fluid) | U20: =U22/60*3500*(U23-U24)/0.8 -> 0
C21: Assumption: Glycol-Water heated with an efficiency of 80% to the desired inlet temperature | T21: Assumption: Glycol-Water heated with an efficiency of 80% to the desired inlet temperature
C22: Flow rate | T22: Flow rate | U22: 0
C23: Inlet Temperature | T23: Inlet Temperature | U23: 30
C24: Outlet Temperature | T24: Outlet Temperature | U24: 25
B26: =Overview!B41 -> Cooling (fluid) | C26: 200 | D26: =-D28/60*3500*(D29-D30)/D14 -> 173.2673267 | E26: If machine is on | F26: =Overview!C41 -> yes | J26: 0 | K26: 0 | L26: 28101.92846 | M26: 0 | N26: 28101.92846 | S26: =Infrastructure_3 -> Cooling (fluid) | T26: 200 | U26: 218.75 | V26: If machine is on
C27: ="Assumption: Centralized cooling systems (glycol-water) have a COP in the region of "&D14 -> Assumption: Centralized cooling systems (glycol-water) have a COP in the region of 5.05 | T27: Assumption: Centralized cooling systems (glycol-water) have a COP in the region of 4 (2015)
C28: Flow rate | D28: 5 | T28: Flow rate | U28: 5
C29: Inlet Temperature | D29: 20 | T29: Inlet Temperature | U29: 20
C30: Outlet Temperature | D30: 23 | T30: Outlet Temperature | U30: 23
B32: =Overview!B42 -> Lubrication centre | C32: 350 | D32: =D34/60/1000*D35*100000/0.5 -> 333.3333333 | E32: Operation only | F32: =Overview!C42 -> yes | J32: 14860.00918 | K32: 0 | L32: 0 | M32: 0 | N32: 14860.00918 | S32: =Infrastructure_4 -> Lubrication centre | T32: 350 | U32: 333.3333333 | V32: Operation only
C33: Assumption: A fluid is provided by a pump with 50% efficiency at the stated mass flow rate with the pressure indicated below | T33: Assumption: Oil is provided by a pump with 50% efficiency at the stated mass flow rate with the pressure indicated below
C34: Flow rate | D34: 10 | T34: Flow rate | U34: 10
C35: Pressure | D35: 10 | T35: Pressure | U35: 10

Sheet Results
I1: =Version -> ET-MTED-V3R1
A2: Results | K2: Results
K3: EXPAMLE
A4: Type | B4: Select the frame of reference for the analysis (over the annual produced fleet, per machine or per part manufactured on a machine) | K4: Type | L4: Select the frame of reference for the analysis (over the annual produced fleet, per machine or per part manufactured on a machine)
B5: Results based on: | C5: machine | L5: Results based on: | M5: machine
B6: factor | C6: =VLOOKUP(C5,$B$7:$C$9,2,FALSE) -> 1 | L6: factor | M6: =VLOOKUP(M5,$B$7:$C$9,2,FALSE) -> 1
B7: fleet | C7: =MachineUnitsSold -> 12 | L7: fleet | M7: =MachineUnitsSold -> 12
B8: machine | C8: 1 | L8: machine | M8: 1
B9: part | C9: =1/Calculation!C154 -> 8.09405811e-06 | L9: part | M9: =1/Calculation!M154 -> 
A11: Unit | B11: Select the desired unit for the analysis | K11: Unit | L11: Select the desired unit for the analysis
B12: Reference unit | C12: kg CO2 eq. | L12: Reference unit | M12: kg CO2 eq.
C13: ="["&C12&"]" -> [kg CO2 eq.]
A15: General | B15: Machine name | C15: =MachineName -> Test | K15: General | L15: Machine name | M15: =MachineName_Examp -> Test
B16: Company | C16: =MachineProducer -> My Company | L16: Company | M16: =MachineProducer_Examp -> My Company
B17: ="Impact ["&C12&"]" -> Impact [kg CO2 eq.] | C17: =SUM(C41:H41) -> 518766.7552 | L17: Energy per machine | M17: =SUM(M41:R41) -> 257292.5482
C18: Total | D18: Share | M18: Total | N18: Share
A19: Type | B19: Passive Impact | C19: =SUM(C41:F41,H41) -> 27329.35817 | D19: =C19/SUM(C19:C20) -> 0.05268139852 | K19: Type | L19: Passive Energy | M19: =SUM(M41:P41,R41) -> 27329.35817 | N19: =M19/SUM(M19:M20) -> 0.1062190038
B20: Active Impact | C20: =G41 -> 491437.3971 | D20: =C20/SUM(C19:C20) -> 0.9473186015 | L20: Active Energy | M20: =Q41 -> 229963.1901 | N20: =M20/SUM(M19:M20) -> 0.8937809962
B23: =IF(D20<0.25,"Passive product",IF(D20<0.5,"Product with passive characteristics",IF(D20<0.75,"Product with active characteristics","Active Product"))) -> Active Product | L23: =IF(N20<0.25,"Passive product",IF(N20<0.5,"Product with passive characteristics",IF(N20<0.75,"Product with active characteristics","Active Product"))) -> Active Product
A25: Life-Cycle | B25: Results of the life-cycle analysis. For each machine life phase, the demand for primary energy is given in MJ. If available, the life phase specific consumption is split into different consumers | K25: Life-Cycle | L25: Results of the life-cycle analysis. For each machine life phase, the demand for primary energy is given in MJ. If available, the life phase specific consumption is split into different consumers
C27: Raw Material | D27: Purchasing & Production | E27: Transportation & Packaging | F27: Commissioning | G27: Operation | H27: Recycling | M27: Raw Material | N27: Purchasing & Production | O27: Transportation & Packaging | P27: Commissioning | Q27: Operation | R27: Recycling
B28: Raw material | C28: =Calculation!L8*$C$6 -> 17584.911 | L28: Raw material | M28: 17584.911
B29: Production | D29: =Calculation!L30*$C$6 -> 2122.09125 | L29: Production | N29: 2122.09125
B30: Purchasing | D30: =Calculation!L31*$C$6 -> 3600.654583 | L30: Purchasing | N30: 3600.654583
B31: Packaging | E31: =Calculation!L53*$C$6 -> 115.2189362 | L31: Packaging | O31: 115.2189362
B32: Transportation | E32: =Calculation!L76*$C$6 -> 782.4824 | L32: Transportation | O32: 782.4824
B33: Commissioning | F33: =Calculation!L97*$C$6 -> 3124 | L33: Commissioning | P33: 3124
B34: Energy | G34: =Calculation!L112*$C$6 -> 255182.3517 | L34: Energy | Q34: 64346.29121
B35: Tools | G35: =Calculation!L128*$C$6 -> 10936.90731 | L35: Tools | Q35: 11070.26951
B36: Infrastructure | G36: =Calculation!L137*$C$6 -> 97267.01112 | L36: Infrastructure | Q36: 29788.21154
B37: Resources | G37: =Calculation!L142*$C$6 -> 17344.07435 | L37: Resources | Q37: 17459.05302
B38: Scrap material | G38: =Calculation!L147*$C$6 -> 110699.6384 | L38: Scrap material | Q38: 107291.9505
B39: Services | G39: =Calculation!L152*$C$6 -> 7.41424 | L39: Services | Q39: 7.41424
B40: Recycling | H40: =Calculation!L159*$C$6 -> 0 | L40: Recycling | R40: 0
B41: Total | C41: =SUM(C28:C40) -> 17584.911 | D41: =SUM(D28:D40) -> 5722.745833 | E41: 897.7013362 | F41: 3124 | G41: 491437.3971 | H41: 0 | L41: Total | M41: 17584.911 | N41: 5722.745833 | O41: 897.7013362 | P41: 3124 | Q41: 229963.1901 | R41: 0
A65: Machine States | F65: The state specific energy consumption describes the ratio between the electric energy consumption in all machine states relative to the total energy consumptions over the whole machine life time. The following states are used: - Operation: The machine is processing one or multiple parts - Ready: The machine is not processing, but can start processing within seconds. - Standby: The machine is in a reduced power state. Only basic modules are running. A state transition into "Ready" is only possible within minutes or hours (warm-up). - Off: The machine is shutdown (main switch off or power line disconnected) | K65: Energy demand | P65: The state specific energy consumption describes the ratio between the electric energy consumption in all machine states relative to the total energy consumptions over the whole machine life time. The following states are used: - Operation: The machine is processing one or multiple parts - Ready: The machine is not processing, but can start processing within seconds. - Standby: The machine is in a reduced power state. Only basic modules are running. A state transition into "Ready" is only possible within minutes or hours (warm-up). - Off: The machine is shutdown (main switch off or power line disconnected)
F81: Installed power compared to power consumptions over all machine states. The installed power is equal to the sum of rated powers of all machine modules. | P81: Installed power compared to power consumptions over all machine states. The installed power is equal to the sum of rated powers of all machine modules.
U82: installed power [W] | V82: Operation | W82: Ready | X82: Standby | Y82: Off
U83: 116 | V83: 36 | W83: 8.1 | X83: 6.5 | Y83: 0.1
V84: 1017989.011 | W84: 201561.8242 | X84: 138220.2857 | Y84: 791.7692308
A93: Components | B93: Component | C93: Total | D93: =Calculation!D113 -> Operation | E93: =Calculation!E113 -> Ready | F93: =Calculation!F113 -> Standby | G93: =Calculation!G113 -> Off | K93: Components | L93: Component | M93: Total | N93: =D93 -> Operation | O93: =E93 -> Ready | P93: Standby | Q93: Off
B94: =Calculation!B118 -> Machine structure | C94: =Calculation!H118*$C$6 -> 0 | D94: =Calculation!D118*$C$6 -> 0 | E94: =Calculation!E118*$C$6 -> 0 | F94: =Calculation!F118*$C$6 -> 0 | G94: =Calculation!G118*$C$6 -> 0 | L94: Machine structure | M94: 31831.35197 | N94: 12525.45329 | O94: 10688.38681 | P94: 8617.511865 | Q94: 0
B95: =Calculation!B119 -> Hauptspindel | C95: =Calculation!H119*$C$6 -> 186795.819 | D95: =Calculation!D119*$C$6 -> 178320.1101 | E95: =Calculation!E119*$C$6 -> 8475.708937 | F95: =Calculation!F119*$C$6 -> 0 | G95: =Calculation!G119*$C$6 -> 0 | L95: Hauptspindel | M95: 80496.91315 | N95: 75152.71975 | O95: 5344.193404 | P95: 0 | Q95: 0
B96: =Calculation!B120 -> Achse X1 | C96: =Calculation!H120*$C$6 -> 61135.17849 | D96: =Calculation!D120*$C$6 -> 59440.0367 | E96: =Calculation!E120*$C$6 -> 1695.141787 | F96: =Calculation!F120*$C$6 -> 0 | G96: =Calculation!G120*$C$6 -> 0 | L96: Achse X1 | M96: 26119.74526 | N96: 25050.90658 | O96: 1068.838681 | P96: 0 | Q96: 0
B97: =Calculation!B121 -> Achse Y1 | C97: =Calculation!H121*$C$6 -> 61135.17849 | D97: =Calculation!D121*$C$6 -> 59440.0367 | E97: =Calculation!E121*$C$6 -> 1695.141787 | F97: =Calculation!F121*$C$6 -> 0 | G97: =Calculation!G121*$C$6 -> 0 | L97: Achse Y1 | M97: 26119.74526 | N97: 25050.90658 | O97: 1068.838681 | P97: 0 | Q97: 0
B98: =Calculation!B122 -> Achse Z1 | C98: =Calculation!H122*$C$6 -> 13583.14913 | D98: =Calculation!D122*$C$6 -> 11888.00734 | E98: =Calculation!E122*$C$6 -> 1695.141787 | F98: =Calculation!F122*$C$6 -> 0 | G98: =Calculation!G122*$C$6 -> 0 | L98: Achse Z1 | M98: 6079.019998 | N98: 5010.181317 | O98: 1068.838681 | P98: 0 | Q98: 0
B99: =Calculation!B123 -> Kabinett | C99: =Calculation!H123*$C$6 -> 92544.83492 | D99: =Calculation!D123*$C$6 -> 59440.0367 | E99: =Calculation!E123*$C$6 -> 21189.27234 | F99: =Calculation!F123*$C$6 -> 11915.52588 | G99: =Calculation!G123*$C$6 -> 0 | L99: Kabinett | M99: 49183.27993 | N99: 25050.90658 | O99: 13360.48351 | P99: 10771.88983 | Q99: 0
B100: =Calculation!B124 -> KSM Pumpe | C100: =Calculation!H124*$C$6 -> 104020.0642 | D100: =Calculation!D124*$C$6 -> 104020.0642 | E100: =Calculation!E124*$C$6 -> 0 | F100: =Calculation!F124*$C$6 -> 0 | G100: =Calculation!G124*$C$6 -> 0 | L100: KSM Pumpe | M100: 43839.08652 | N100: 43839.08652 | O100: 0 | P100: 0 | Q100: 0
B101: =Calculation!B125 -> Spindelkühlung | C101: =Calculation!H125*$C$6 -> 53555.47307 | D101: =Calculation!D125*$C$6 -> 29720.01835 | E101: =Calculation!E125*$C$6 -> 15256.27609 | F101: =Calculation!F125*$C$6 -> 8579.178631 | G101: =Calculation!G125*$C$6 -> 0 | L101: Spindelkühlung | M101: 29900.7621 | N101: 12525.45329 | O101: 9619.548128 | P101: 7755.760678 | Q101: 0
B102: =Calculation!B126 -> Sinumerik | C102: =Calculation!H126*$C$6 -> 7190.192846 | D102: =Calculation!D126*$C$6 -> 2972.001835 | E102: =Calculation!E126*$C$6 -> 1695.141787 | F102: =Calculation!F126*$C$6 -> 953.2420701 | G102: =Calculation!G126*$C$6 -> 1569.807154 | L102: Sinumerik | M102: 3343.567598 | N102: 1252.545329 | O102: 1068.838681 | P102: 861.7511865 | Q102: 160.4324017
B103: Sum | C103: =SUM(C94:C102) -> 579959.8902 | D103: =SUM(D94:D102) -> 505240.312 | E103: 51701.82452 | F103: 21447.94658 | G103: 1569.807154 | L103: Sum | M103: =SUM(M94:M102) -> 296913.4718 | N103: =SUM(N94:N102) -> 225458.1593 | O103: =SUM(O94:O102) -> 43287.96658 | P103: =SUM(P94:P102) -> 28006.91356 | Q103: =SUM(Q94:Q102) -> 160.4324017

Sheet Comparision
I1: =Version -> ET-MTED-V3R1
A2: Comparision (Version Manager)
A4: Settings | B4: Frame of reference | C4: =Results!C5 -> machine
B5: Unit | C5: =Results!C12 -> kg CO2 eq.
C6: =Comparision!$C$4&" ["&Comparision!$C$5&"]" -> machine [kg CO2 eq.]
A9: Results | B9: File | C9: Version | D9: Raw Material | E9: Purchasing & Production | F9: Transportation & Packaging | G9: Commissioning | H9: Operation | I9: Recycling | J9: BON [kWh] | K9: productivity, time share [%] | L9: productivity, quantity [Pc/a]
C11: Working | D11: =RESULTS -> 17584.911 | E11: 5722.745833 | F11: 897.7013362 | G11: 3124 | H11: 491437.3971 | I11: 0 | J11: =(Calculation!E117+Calculation!F117+Calculation!G117)*Results!$C$6 -> 32876.61443 | K11: =Calculation!D115 -> 0.3392696159 | L11: =Calculation!C154 -> 123547.4204
C12: Average | D12: =AVERAGE(D$10:D11) -> 17584.911 | E12: =AVERAGE(E$10:E11) -> 5722.745833 | F12: =AVERAGE(F$10:F11) -> 897.7013362 | G12: =AVERAGE(G$10:G11) -> 3124 | H12: =AVERAGE(H$10:H11) -> 491437.3971 | I12: =AVERAGE(I$10:I11) -> 0 | J12: =AVERAGE(J$10:J11) -> 32876.61443 | K12: =AVERAGE(K$10:K11) -> 0.3392696159 | L12: =AVERAGE(L$10:L11) -> 123547.4204
C13: Minimum | D13: =MIN(D$10:D11) -> 17584.911 | E13: =MIN(E$10:E11) -> 5722.745833 | F13: =MIN(F$10:F11) -> 897.7013362 | G13: =MIN(G$10:G11) -> 3124 | H13: =MIN(H$10:H11) -> 491437.3971 | I13: =MIN(I$10:I11) -> 0 | J13: =MIN(J$10:J11) -> 32876.61443 | K13: =MIN(K$10:K11) -> 0.3392696159 | L13: =MIN(L$10:L11) -> 123547.4204
C14: Maximum | D14: =MAX(D$10:D11) -> 17584.911 | E14: =MAX(E$10:E11) -> 5722.745833 | F14: =MAX(F$10:F11) -> 897.7013362 | G14: =MAX(G$10:G11) -> 3124 | H14: =MAX(H$10:H11) -> 491437.3971 | I14: =MAX(I$10:I11) -> 0 | J14: =MAX(J$10:J11) -> 32876.61443 | K14: =MAX(K$10:K11) -> 0.3392696159 | L14: =MAX(L$10:L11) -> 123547.4204
C15: Improvement | D15: =D14-D13 -> 0 | E15: =E14-E13 -> 0 | F15: 0 | G15: 0 | H15: 0 | I15: 0 | J15: =J14-J13 -> 0 | K15: 0 | L15: 0

Sheet Calculation (hidden)
A1: Eco Tool-light Machine tool edition | K1: Output | M1: Comments
A3: Overview | B3: TODO
A6: Raw materials | C6: Impact Material 1 | D6: Impact Material 2 | E6: Impact Material 3 | F6: Impact Material 4 | G6: Impact Material 5 | H6: Impact | I6: Mass
B7: Machine
B8: Machine structure | C8: =IF(LifeCycle!C9="",0,INDEX(KEA.General.RawMaterial,MATCH(LifeCycle!C9,KEA.General.Name,0)))*LifeCycle!C10 -> 4820 | D8: =IF(LifeCycle!D9="",0,INDEX(KEA.General.RawMaterial,MATCH(LifeCycle!D9,KEA.General.Name,0)))*LifeCycle!D10 -> 3200 | E8: =IF(LifeCycle!E9="",0,INDEX(KEA.General.RawMaterial,MATCH(LifeCycle!E9,KEA.General.Name,0)))*LifeCycle!E10 -> 1064 | F8: =IF(LifeCycle!F9="",0,INDEX(KEA.General.RawMaterial,MATCH(LifeCycle!F9,KEA.General.Name,0)))*LifeCycle!F10 -> 58.99 | G8: =IF(LifeCycle!G9="",0,INDEX(KEA.General.RawMaterial,MATCH(LifeCycle!G9,KEA.General.Name,0)))*LifeCycle!G10 -> 0 | H8: =SUM(C8:G8) -> 9142.99 | I8: =SUM(LifeCycle!C10:G10) -> 4201 | K8: Raw material | L8: =SUM(H8:H16) -> 17584.911
B9: =Modules -> Hauptspindel | C9: =IF(LifeCycle!C12="",0,INDEX(KEA.General.RawMaterial,MATCH(LifeCycle!C12,KEA.General.Name,0)))*LifeCycle!C13 -> 140.1 | D9: =IF(LifeCycle!D12="",0,INDEX(KEA.General.RawMaterial,MATCH(LifeCycle!D12,KEA.General.Name,0)))*LifeCycle!D13 -> 425.6 | E9: =IF(LifeCycle!E12="",0,INDEX(KEA.General.RawMaterial,MATCH(LifeCycle!E12,KEA.General.Name,0)))*LifeCycle!E13 -> 589.9 | F9: =IF(LifeCycle!F12="",0,INDEX(KEA.General.RawMaterial,MATCH(LifeCycle!F12,KEA.General.Name,0)))*LifeCycle!F13 -> 0 | G9: =IF(LifeCycle!G12="",0,INDEX(KEA.General.RawMaterial,MATCH(LifeCycle!G12,KEA.General.Name,0)))*LifeCycle!G13 -> 0 | H9: =SUM(C9:G9) -> 1155.6 | I9: =SUM(LifeCycle!C13:G13) -> 120
B10: Achse X1 | C10: =IF(LifeCycle!C14="",0,INDEX(KEA.General.RawMaterial,MATCH(LifeCycle!C14,KEA.General.Name,0)))*LifeCycle!C15 -> 233.5 | D10: =IF(LifeCycle!D14="",0,INDEX(KEA.General.RawMaterial,MATCH(LifeCycle!D14,KEA.General.Name,0)))*LifeCycle!D15 -> 53.2 | E10: =IF(LifeCycle!E14="",0,INDEX(KEA.General.RawMaterial,MATCH(LifeCycle!E14,KEA.General.Name,0)))*LifeCycle!E15 -> 58.99 | F10: =IF(LifeCycle!F14="",0,INDEX(KEA.General.RawMaterial,MATCH(LifeCycle!F14,KEA.General.Name,0)))*LifeCycle!F15 -> 0 | G10: =IF(LifeCycle!G14="",0,INDEX(KEA.General.RawMaterial,MATCH(LifeCycle!G14,KEA.General.Name,0)))*LifeCycle!G15 -> 0 | H10: 345.69 | I10: =SUM(LifeCycle!C15:G15) -> 61
B11: Achse Y1 | C11: =IF(LifeCycle!C16="",0,INDEX(KEA.General.RawMaterial,MATCH(LifeCycle!C16,KEA.General.Name,0)))*LifeCycle!C17 -> 233.5 | D11: =IF(LifeCycle!D16="",0,INDEX(KEA.General.RawMaterial,MATCH(LifeCycle!D16,KEA.General.Name,0)))*LifeCycle!D17 -> 53.2 | E11: =IF(LifeCycle!E16="",0,INDEX(KEA.General.RawMaterial,MATCH(LifeCycle!E16,KEA.General.Name,0)))*LifeCycle!E17 -> 58.99 | F11: =IF(LifeCycle!F16="",0,INDEX(KEA.General.RawMaterial,MATCH(LifeCycle!F16,KEA.General.Name,0)))*LifeCycle!F17 -> 0 | G11: =IF(LifeCycle!G16="",0,INDEX(KEA.General.RawMaterial,MATCH(LifeCycle!G16,KEA.General.Name,0)))*LifeCycle!G17 -> 0 | H11: 345.69 | I11: =SUM(LifeCycle!C17:G17) -> 61
B12: Achse Z1 | C12: =IF(LifeCycle!C18="",0,INDEX(KEA.General.RawMaterial,MATCH(LifeCycle!C18,KEA.General.Name,0)))*LifeCycle!C19 -> 140.1 | D12: =IF(LifeCycle!D18="",0,INDEX(KEA.General.RawMaterial,MATCH(LifeCycle!D18,KEA.General.Name,0)))*LifeCycle!D19 -> 26.6 | E12: =IF(LifeCycle!E18="",0,INDEX(KEA.General.RawMaterial,MATCH(LifeCycle!E18,KEA.General.Name,0)))*LifeCycle!E19 -> 29.495 | F12: =IF(LifeCycle!F18="",0,INDEX(KEA.General.RawMaterial,MATCH(LifeCycle!F18,KEA.General.Name,0)))*LifeCycle!F19 -> 0 | G12: =IF(LifeCycle!G18="",0,INDEX(KEA.General.RawMaterial,MATCH(LifeCycle!G18,KEA.General.Name,0)))*LifeCycle!G19 -> 0 | H12: 196.195 | I12: =SUM(LifeCycle!C19:G19) -> 35.5
B13: Kabinett | C13: =IF(LifeCycle!C20="",0,INDEX(KEA.General.RawMaterial,MATCH(LifeCycle!C20,KEA.General.Name,0)))*LifeCycle!C21 -> 36.15 | D13: =IF(LifeCycle!D20="",0,INDEX(KEA.General.RawMaterial,MATCH(LifeCycle!D20,KEA.General.Name,0)))*LifeCycle!D21 -> 5899 | E13: =IF(LifeCycle!E20="",0,INDEX(KEA.General.RawMaterial,MATCH(LifeCycle!E20,KEA.General.Name,0)))*LifeCycle!E21 -> 0 | F13: =IF(LifeCycle!F20="",0,INDEX(KEA.General.RawMaterial,MATCH(LifeCycle!F20,KEA.General.Name,0)))*LifeCycle!F21 -> 0 | G13: =IF(LifeCycle!G20="",0,INDEX(KEA.General.RawMaterial,MATCH(LifeCycle!G20,KEA.General.Name,0)))*LifeCycle!G21 -> 0 | H13: 5935.15 | I13: =SUM(LifeCycle!C21:G21) -> 115
B14: KSM Pumpe | C14: =IF(LifeCycle!C22="",0,INDEX(KEA.General.RawMaterial,MATCH(LifeCycle!C22,KEA.General.Name,0)))*LifeCycle!C23 -> 12.05 | D14: =IF(LifeCycle!D22="",0,INDEX(KEA.General.RawMaterial,MATCH(LifeCycle!D22,KEA.General.Name,0)))*LifeCycle!D23 -> 63.84 | E14: =IF(LifeCycle!E22="",0,INDEX(KEA.General.RawMaterial,MATCH(LifeCycle!E22,KEA.General.Name,0)))*LifeCycle!E23 -> 11.798 | F14: =IF(LifeCycle!F22="",0,INDEX(KEA.General.RawMaterial,MATCH(LifeCycle!F22,KEA.General.Name,0)))*LifeCycle!F23 -> 0 | G14: =IF(LifeCycle!G22="",0,INDEX(KEA.General.RawMaterial,MATCH(LifeCycle!G22,KEA.General.Name,0)))*LifeCycle!G23 -> 0 | H14: 87.688 | I14: =SUM(LifeCycle!C23:G23) -> 17.2
B15: Spindelkühlung | C15: =IF(LifeCycle!C24="",0,INDEX(KEA.General.RawMaterial,MATCH(LifeCycle!C24,KEA.General.Name,0)))*LifeCycle!C25 -> 7.23 | D15: =IF(LifeCycle!D24="",0,INDEX(KEA.General.RawMaterial,MATCH(LifeCycle!D24,KEA.General.Name,0)))*LifeCycle!D25 -> 42.56 | E15: =IF(LifeCycle!E24="",0,INDEX(KEA.General.RawMaterial,MATCH(LifeCycle!E24,KEA.General.Name,0)))*LifeCycle!E25 -> 11.798 | F15: =IF(LifeCycle!F24="",0,INDEX(KEA.General.RawMaterial,MATCH(LifeCycle!F24,KEA.General.Name,0)))*LifeCycle!F25 -> 0 | G15: =IF(LifeCycle!G24="",0,INDEX(KEA.General.RawMaterial,MATCH(LifeCycle!G24,KEA.General.Name,0)))*LifeCycle!G25 -> 0 | H15: 61.588 | I15: =SUM(LifeCycle!C25:G25) -> 11.2
B16: Sinumerik | C16: =IF(LifeCycle!C26="",0,INDEX(KEA.General.RawMaterial,MATCH(LifeCycle!C26,KEA.General.Name,0)))*LifeCycle!C27 -> 4.82 | D16: =IF(LifeCycle!D26="",0,INDEX(KEA.General.RawMaterial,MATCH(LifeCycle!D26,KEA.General.Name,0)))*LifeCycle!D27 -> 14.55 | E16: =IF(LifeCycle!E26="",0,INDEX(KEA.General.RawMaterial,MATCH(LifeCycle!E26,KEA.General.Name,0)))*LifeCycle!E27 -> 294.95 | F16: =IF(LifeCycle!F26="",0,INDEX(KEA.General.RawMaterial,MATCH(LifeCycle!F26,KEA.General.Name,0)))*LifeCycle!F27 -> 0 | G16: =IF(LifeCycle!G26="",0,INDEX(KEA.General.RawMaterial,MATCH(LifeCycle!G26,KEA.General.Name,0)))*LifeCycle!G27 -> 0 | H16: 314.32 | I16: =SUM(LifeCycle!C27:G27) -> 12
B17: Tools
B18: =Tools -> Fräser 1 | C18: =IF(LifeCycle!C29="",0,INDEX(KEA.General.RawMaterial,MATCH(LifeCycle!C29,KEA.General.Name,0)))*LifeCycle!C30 -> 0.964 | D18: =IF(LifeCycle!D29="",0,INDEX(KEA.General.RawMaterial,MATCH(LifeCycle!D29,KEA.General.Name,0)))*LifeCycle!D30 -> 0 | E18: =IF(LifeCycle!E29="",0,INDEX(KEA.General.RawMaterial,MATCH(LifeCycle!E29,KEA.General.Name,0)))*LifeCycle!E30 -> 0 | F18: =IF(LifeCycle!F29="",0,INDEX(KEA.General.RawMaterial,MATCH(LifeCycle!F29,KEA.General.Name,0)))*LifeCycle!F30 -> 0 | G18: =IF(LifeCycle!G29="",0,INDEX(KEA.General.RawMaterial,MATCH(LifeCycle!G29,KEA.General.Name,0)))*LifeCycle!G30 -> 0 | H18: =SUM(C18:G18) -> 0.964 | I18: =SUM(LifeCycle!C30:G30) -> 0.4
B19: Fräser 2 | C19: =IF(LifeCycle!C31="",0,INDEX(KEA.General.RawMaterial,MATCH(LifeCycle!C31,KEA.General.Name,0)))*LifeCycle!C32 -> 0.723 | D19: =IF(LifeCycle!D31="",0,INDEX(KEA.General.RawMaterial,MATCH(LifeCycle!D31,KEA.General.Name,0)))*LifeCycle!D32 -> 0 | E19: =IF(LifeCycle!E31="",0,INDEX(KEA.General.RawMaterial,MATCH(LifeCycle!E31,KEA.General.Name,0)))*LifeCycle!E32 -> 0 | F19: =IF(LifeCycle!F31="",0,INDEX(KEA.General.RawMaterial,MATCH(LifeCycle!F31,KEA.General.Name,0)))*LifeCycle!F32 -> 0 | G19: =IF(LifeCycle!G31="",0,INDEX(KEA.General.RawMaterial,MATCH(LifeCycle!G31,KEA.General.Name,0)))*LifeCycle!G32 -> 0 | H19: 0.723 | I19: =SUM(LifeCycle!C32:G32) -> 0.3
B20: Fräser 3 | C20: =IF(LifeCycle!C33="",0,INDEX(KEA.General.RawMaterial,MATCH(LifeCycle!C33,KEA.General.Name,0)))*LifeCycle!C34 -> 0.723 | D20: =IF(LifeCycle!D33="",0,INDEX(KEA.General.RawMaterial,MATCH(LifeCycle!D33,KEA.General.Name,0)))*LifeCycle!D34 -> 0 | E20: =IF(LifeCycle!E33="",0,INDEX(KEA.General.RawMaterial,MATCH(LifeCycle!E33,KEA.General.Name,0)))*LifeCycle!E34 -> 0 | F20: =IF(LifeCycle!F33="",0,INDEX(KEA.General.RawMaterial,MATCH(LifeCycle!F33,KEA.General.Name,0)))*LifeCycle!F34 -> 0 | G20: =IF(LifeCycle!G33="",0,INDEX(KEA.General.RawMaterial,MATCH(LifeCycle!G33,KEA.General.Name,0)))*LifeCycle!G34 -> 0 | H20: 0.723 | I20: =SUM(LifeCycle!C34:G34) -> 0.3
B21: Bohrer 1 | C21: =IF(LifeCycle!C35="",0,INDEX(KEA.General.RawMaterial,MATCH(LifeCycle!C35,KEA.General.Name,0)))*LifeCycle!C36 -> 0.482 | D21: =IF(LifeCycle!D35="",0,INDEX(KEA.General.RawMaterial,MATCH(LifeCycle!D35,KEA.General.Name,0)))*LifeCycle!D36 -> 0 | E21: =IF(LifeCycle!E35="",0,INDEX(KEA.General.RawMaterial,MATCH(LifeCycle!E35,KEA.General.Name,0)))*LifeCycle!E36 -> 0 | F21: =IF(LifeCycle!F35="",0,INDEX(KEA.General.RawMaterial,MATCH(LifeCycle!F35,KEA.General.Name,0)))*LifeCycle!F36 -> 0 | G21: =IF(LifeCycle!G35="",0,INDEX(KEA.General.RawMaterial,MATCH(LifeCycle!G35,KEA.General.Name,0)))*LifeCycle!G36 -> 0 | H21: 0.482 | I21: =SUM(LifeCycle!C36:G36) -> 0.2
B22: Bohrer 2 | C22: =IF(LifeCycle!C37="",0,INDEX(KEA.General.RawMaterial,MATCH(LifeCycle!C37,KEA.General.Name,0)))*LifeCycle!C38 -> 0.241 | D22: =IF(LifeCycle!D37="",0,INDEX(KEA.General.RawMaterial,MATCH(LifeCycle!D37,KEA.General.Name,0)))*LifeCycle!D38 -> 0 | E22: =IF(LifeCycle!E37="",0,INDEX(KEA.General.RawMaterial,MATCH(LifeCycle!E37,KEA.General.Name,0)))*LifeCycle!E38 -> 0 | F22: =IF(LifeCycle!F37="",0,INDEX(KEA.General.RawMaterial,MATCH(LifeCycle!F37,KEA.General.Name,0)))*LifeCycle!F38 -> 0 | G22: =IF(LifeCycle!G37="",0,INDEX(KEA.General.RawMaterial,MATCH(LifeCycle!G37,KEA.General.Name,0)))*LifeCycle!G38 -> 0 | H22: 0.241 | I22: =SUM(LifeCycle!C38:G38) -> 0.1
B23: Bohrer 3 | C23: =IF(LifeCycle!C39="",0,INDEX(KEA.General.RawMaterial,MATCH(LifeCycle!C39,KEA.General.Name,0)))*LifeCycle!C40 -> 0.241 | D23: =IF(LifeCycle!D39="",0,INDEX(KEA.General.RawMaterial,MATCH(LifeCycle!D39,KEA.General.Name,0)))*LifeCycle!D40 -> 0 | E23: =IF(LifeCycle!E39="",0,INDEX(KEA.General.RawMaterial,MATCH(LifeCycle!E39,KEA.General.Name,0)))*LifeCycle!E40 -> 0 | F23: =IF(LifeCycle!F39="",0,INDEX(KEA.General.RawMaterial,MATCH(LifeCycle!F39,KEA.General.Name,0)))*LifeCycle!F40 -> 0 | G23: =IF(LifeCycle!G39="",0,INDEX(KEA.General.RawMaterial,MATCH(LifeCycle!G39,KEA.General.Name,0)))*LifeCycle!G40 -> 0 | H23: 0.241 | I23: =SUM(LifeCycle!C40:G40) -> 0.1
B24: Bohrer 4 | C24: =IF(LifeCycle!C41="",0,INDEX(KEA.General.RawMaterial,MATCH(LifeCycle!C41,KEA.General.Name,0)))*LifeCycle!C42 -> 0.241 | D24: =IF(LifeCycle!D41="",0,INDEX(KEA.General.RawMaterial,MATCH(LifeCycle!D41,KEA.General.Name,0)))*LifeCycle!D42 -> 0 | E24: =IF(LifeCycle!E41="",0,INDEX(KEA.General.RawMaterial,MATCH(LifeCycle!E41,KEA.General.Name,0)))*LifeCycle!E42 -> 0 | F24: =IF(LifeCycle!F41="",0,INDEX(KEA.General.RawMaterial,MATCH(LifeCycle!F41,KEA.General.Name,0)))*LifeCycle!F42 -> 0 | G24: =IF(LifeCycle!G41="",0,INDEX(KEA.General.RawMaterial,MATCH(LifeCycle!G41,KEA.General.Name,0)))*LifeCycle!G42 -> 0 | H24: 0.241 | I24: =SUM(LifeCycle!C42:G42) -> 0.1
B25: Gewindeschneider | C25: =IF(LifeCycle!C43="",0,INDEX(KEA.General.RawMaterial,MATCH(LifeCycle!C43,KEA.General.Name,0)))*LifeCycle!C44 -> 0.241 | D25: =IF(LifeCycle!D43="",0,INDEX(KEA.General.RawMaterial,MATCH(LifeCycle!D43,KEA.General.Name,0)))*LifeCycle!D44 -> 0 | E25: =IF(LifeCycle!E43="",0,INDEX(KEA.General.RawMaterial,MATCH(LifeCycle!E43,KEA.General.Name,0)))*LifeCycle!E44 -> 0 | F25: =IF(LifeCycle!F43="",0,INDEX(KEA.General.RawMaterial,MATCH(LifeCycle!F43,KEA.General.Name,0)))*LifeCycle!F44 -> 0 | G25: =IF(LifeCycle!G43="",0,INDEX(KEA.General.RawMaterial,MATCH(LifeCycle!G43,KEA.General.Name,0)))*LifeCycle!G44 -> 0 | H25: 0.241 | I25: =SUM(LifeCycle!C44:G44) -> 0.1
A27: Purchasing & production
I28: in-house Impact | J28: external Impact | M28: special production methods
B29: Machine
B30: =B$8 -> Machine structure | C30: =IF(LifeCycle!C9="",0,INDEX(KEA.General.Production,MATCH(LifeCycle!C9,KEA.General.Name,0)))*LifeCycle!C10 -> 4016.666667 | D30: =IF(LifeCycle!D9="",0,INDEX(KEA.General.Production,MATCH(LifeCycle!D9,KEA.General.Name,0)))*LifeCycle!D10 -> 853.3333333 | E30: =IF(LifeCycle!E9="",0,INDEX(KEA.General.Production,MATCH(LifeCycle!E9,KEA.General.Name,0)))*LifeCycle!E10 -> 319.2 | F30: =IF(LifeCycle!F9="",0,INDEX(KEA.General.Production,MATCH(LifeCycle!F9,KEA.General.Name,0)))*LifeCycle!F10 -> 0 | G30: =IF(LifeCycle!G9="",0,INDEX(KEA.General.Production,MATCH(LifeCycle!G9,KEA.General.Name,0)))*LifeCycle!G10 -> 0 | H30: =SUM(C30:G30) -> 5189.2 | I30: =H30*LifeCycle!C48 -> 2075.68 | J30: =H30-I30 -> 3113.52 | K30: Production | L30: =SUM(I30:I38) -> 2122.09125 | M30: =LifeCycle!D49 -> 0
B31: =Modules -> Hauptspindel | C31: =IF(LifeCycle!C12="",0,INDEX(KEA.General.Production,MATCH(LifeCycle!C12,KEA.General.Name,0)))*LifeCycle!C13 -> 52.5375 | D31: =IF(LifeCycle!D12="",0,INDEX(KEA.General.Production,MATCH(LifeCycle!D12,KEA.General.Name,0)))*LifeCycle!D13 -> 127.68 | E31: =IF(LifeCycle!E12="",0,INDEX(KEA.General.Production,MATCH(LifeCycle!E12,KEA.General.Name,0)))*LifeCycle!E13 -> 0 | F31: =IF(LifeCycle!F12="",0,INDEX(KEA.General.Production,MATCH(LifeCycle!F12,KEA.General.Name,0)))*LifeCycle!F13 -> 0 | G31: =IF(LifeCycle!G12="",0,INDEX(KEA.General.Production,MATCH(LifeCycle!G12,KEA.General.Name,0)))*LifeCycle!G13 -> 0 | H31: =SUM(C31:G31) -> 180.2175 | I31: =H31*LifeCycle!C50 -> 0 | J31: =H31-I31 -> 180.2175 | K31: Purchasing | L31: =SUM(J30:J38) -> 3600.654583 | M31: =LifeCycle!D50 -> 0
B32: Achse X1 | C32: =IF(LifeCycle!C14="",0,INDEX(KEA.General.Production,MATCH(LifeCycle!C14,KEA.General.Name,0)))*LifeCycle!C15 -> 87.5625 | D32: =IF(LifeCycle!D14="",0,INDEX(KEA.General.Production,MATCH(LifeCycle!D14,KEA.General.Name,0)))*LifeCycle!D15 -> 15.96 | E32: =IF(LifeCycle!E14="",0,INDEX(KEA.General.Production,MATCH(LifeCycle!E14,KEA.General.Name,0)))*LifeCycle!E15 -> 0 | F32: =IF(LifeCycle!F14="",0,INDEX(KEA.General.Production,MATCH(LifeCycle!F14,KEA.General.Name,0)))*LifeCycle!F15 -> 0 | G32: =IF(LifeCycle!G14="",0,INDEX(KEA.General.Production,MATCH(LifeCycle!G14,KEA.General.Name,0)))*LifeCycle!G15 -> 0 | H32: 103.5225 | I32: =H32*LifeCycle!C51 -> 10.35225 | J32: =H32-I32 -> 93.17025 | M32: =LifeCycle!D51 -> 0
B33: Achse Y1 | C33: =IF(LifeCycle!C16="",0,INDEX(KEA.General.Production,MATCH(LifeCycle!C16,KEA.General.Name,0)))*LifeCycle!C17 -> 87.5625 | D33: =IF(LifeCycle!D16="",0,INDEX(KEA.General.Production,MATCH(LifeCycle!D16,KEA.General.Name,0)))*LifeCycle!D17 -> 15.96 | E33: =IF(LifeCycle!E16="",0,INDEX(KEA.General.Production,MATCH(LifeCycle!E16,KEA.General.Name,0)))*LifeCycle!E17 -> 0 | F33: =IF(LifeCycle!F16="",0,INDEX(KEA.General.Production,MATCH(LifeCycle!F16,KEA.General.Name,0)))*LifeCycle!F17 -> 0 | G33: =IF(LifeCycle!G16="",0,INDEX(KEA.General.Production,MATCH(LifeCycle!G16,KEA.General.Name,0)))*LifeCycle!G17 -> 0 | H33: 103.5225 | I33: =H33*LifeCycle!C52 -> 10.35225 | J33: 93.17025 | M33: =LifeCycle!D52 -> 0
B34: Achse Z1 | C34: =IF(LifeCycle!C18="",0,INDEX(KEA.General.Production,MATCH(LifeCycle!C18,KEA.General.Name,0)))*LifeCycle!C19 -> 52.5375 | D34: =IF(LifeCycle!D18="",0,INDEX(KEA.General.Production,MATCH(LifeCycle!D18,KEA.General.Name,0)))*LifeCycle!D19 -> 7.98 | E34: =IF(LifeCycle!E18="",0,INDEX(KEA.General.Production,MATCH(LifeCycle!E18,KEA.General.Name,0)))*LifeCycle!E19 -> 0 | F34: =IF(LifeCycle!F18="",0,INDEX(KEA.General.Production,MATCH(LifeCycle!F18,KEA.General.Name,0)))*LifeCycle!F19 -> 0 | G34: =IF(LifeCycle!G18="",0,INDEX(KEA.General.Production,MATCH(LifeCycle!G18,KEA.General.Name,0)))*LifeCycle!G19 -> 0 | H34: 60.5175 | I34: =H34*LifeCycle!C53 -> 6.05175 | J34: 54.46575 | M34: =LifeCycle!D53 -> 0
B35: Kabinett | C35: =IF(LifeCycle!C20="",0,INDEX(KEA.General.Production,MATCH(LifeCycle!C20,KEA.General.Name,0)))*LifeCycle!C21 -> 30.125 | D35: =IF(LifeCycle!D20="",0,INDEX(KEA.General.Production,MATCH(LifeCycle!D20,KEA.General.Name,0)))*LifeCycle!D21 -> 0 | E35: =IF(LifeCycle!E20="",0,INDEX(KEA.General.Production,MATCH(LifeCycle!E20,KEA.General.Name,0)))*LifeCycle!E21 -> 0 | F35: =IF(LifeCycle!F20="",0,INDEX(KEA.General.Production,MATCH(LifeCycle!F20,KEA.General.Name,0)))*LifeCycle!F21 -> 0 | G35: =IF(LifeCycle!G20="",0,INDEX(KEA.General.Production,MATCH(LifeCycle!G20,KEA.General.Name,0)))*LifeCycle!G21 -> 0 | H35: 30.125 | I35: =H35*LifeCycle!C54 -> 15.0625 | J35: 15.0625 | M35: =LifeCycle!D54 -> 0
B36: KSM Pumpe | C36: =IF(LifeCycle!C22="",0,INDEX(KEA.General.Production,MATCH(LifeCycle!C22,KEA.General.Name,0)))*LifeCycle!C23 -> 10.04166667 | D36: =IF(LifeCycle!D22="",0,INDEX(KEA.General.Production,MATCH(LifeCycle!D22,KEA.General.Name,0)))*LifeCycle!D23 -> 19.152 | E36: =IF(LifeCycle!E22="",0,INDEX(KEA.General.Production,MATCH(LifeCycle!E22,KEA.General.Name,0)))*LifeCycle!E23 -> 0 | F36: =IF(LifeCycle!F22="",0,INDEX(KEA.General.Production,MATCH(LifeCycle!F22,KEA.General.Name,0)))*LifeCycle!F23 -> 0 | G36: =IF(LifeCycle!G22="",0,INDEX(KEA.General.Production,MATCH(LifeCycle!G22,KEA.General.Name,0)))*LifeCycle!G23 -> 0 | H36: 29.19366667 | I36: =H36*LifeCycle!C55 -> 0 | J36: 29.19366667 | M36: =LifeCycle!D55 -> 0
B37: Spindelkühlung | C37: =IF(LifeCycle!C24="",0,INDEX(KEA.General.Production,MATCH(LifeCycle!C24,KEA.General.Name,0)))*LifeCycle!C25 -> 6.025 | D37: =IF(LifeCycle!D24="",0,INDEX(KEA.General.Production,MATCH(LifeCycle!D24,KEA.General.Name,0)))*LifeCycle!D25 -> 12.768 | E37: =IF(LifeCycle!E24="",0,INDEX(KEA.General.Production,MATCH(LifeCycle!E24,KEA.General.Name,0)))*LifeCycle!E25 -> 0 | F37: =IF(LifeCycle!F24="",0,INDEX(KEA.General.Production,MATCH(LifeCycle!F24,KEA.General.Name,0)))*LifeCycle!F25 -> 0 | G37: =IF(LifeCycle!G24="",0,INDEX(KEA.General.Production,MATCH(LifeCycle!G24,KEA.General.Name,0)))*LifeCycle!G25 -> 0 | H37: 18.793 | I37: =H37*LifeCycle!C56 -> 0 | J37: 18.793 | M37: =LifeCycle!D56 -> 0
B38: Sinumerik | C38: =IF(LifeCycle!C26="",0,INDEX(KEA.General.Production,MATCH(LifeCycle!C26,KEA.General.Name,0)))*LifeCycle!C27 -> 4.016666667 | D38: =IF(LifeCycle!D26="",0,INDEX(KEA.General.Production,MATCH(LifeCycle!D26,KEA.General.Name,0)))*LifeCycle!D27 -> 3.6375 | E38: =IF(LifeCycle!E26="",0,INDEX(KEA.General.Production,MATCH(LifeCycle!E26,KEA.General.Name,0)))*LifeCycle!E27 -> 0 | F38: =IF(LifeCycle!F26="",0,INDEX(KEA.General.Production,MATCH(LifeCycle!F26,KEA.General.Name,0)))*LifeCycle!F27 -> 0 | G38: =IF(LifeCycle!G26="",0,INDEX(KEA.General.Production,MATCH(LifeCycle!G26,KEA.General.Name,0)))*LifeCycle!G27 -> 0 | H38: 7.654166667 | I38: =H38*LifeCycle!C57 -> 4.5925 | J38: 3.061666667 | M38: =LifeCycle!D57 -> 0
B39: =B$17 -> Tools
B40: =Tools -> Fräser 1 | C40: =IF(LifeCycle!C29="",0,INDEX(KEA.General.RawMaterial,MATCH(LifeCycle!C29,KEA.General.Name,0)))*LifeCycle!C30 -> 0.964 | D40: =IF(LifeCycle!D29="",0,INDEX(KEA.General.RawMaterial,MATCH(LifeCycle!D29,KEA.General.Name,0)))*LifeCycle!D30 -> 0 | E40: =IF(LifeCycle!E29="",0,INDEX(KEA.General.RawMaterial,MATCH(LifeCycle!E29,KEA.General.Name,0)))*LifeCycle!E30 -> 0 | F40: =IF(LifeCycle!F29="",0,INDEX(KEA.General.RawMaterial,MATCH(LifeCycle!F29,KEA.General.Name,0)))*LifeCycle!F30 -> 0 | G40: =IF(LifeCycle!G29="",0,INDEX(KEA.General.RawMaterial,MATCH(LifeCycle!G29,KEA.General.Name,0)))*LifeCycle!G30 -> 0 | H40: =SUM(C40:G40) -> 0.964 | I40: =H40*LifeCycle!C59 -> 0 | J40: =H40-I40 -> 0.964 | M40: =LifeCycle!D59 -> 0
B41: Fräser 2 | C41: =IF(LifeCycle!C31="",0,INDEX(KEA.General.RawMaterial,MATCH(LifeCycle!C31,KEA.General.Name,0)))*LifeCycle!C32 -> 0.723 | D41: =IF(LifeCycle!D31="",0,INDEX(KEA.General.RawMaterial,MATCH(LifeCycle!D31,KEA.General.Name,0)))*LifeCycle!D32 -> 0 | E41: =IF(LifeCycle!E31="",0,INDEX(KEA.General.RawMaterial,MATCH(LifeCycle!E31,KEA.General.Name,0)))*LifeCycle!E32 -> 0 | F41: =IF(LifeCycle!F31="",0,INDEX(KEA.General.RawMaterial,MATCH(LifeCycle!F31,KEA.General.Name,0)))*LifeCycle!F32 -> 0 | G41: =IF(LifeCycle!G31="",0,INDEX(KEA.General.RawMaterial,MATCH(LifeCycle!G31,KEA.General.Name,0)))*LifeCycle!G32 -> 0 | H41: 0.723 | I41: =H41*LifeCycle!C60 -> 0 | J41: =H41-I41 -> 0.723 | M41: =LifeCycle!D60 -> 0
B42: Fräser 3 | C42: =IF(LifeCycle!C33="",0,INDEX(KEA.General.RawMaterial,MATCH(LifeCycle!C33,KEA.General.Name,0)))*LifeCycle!C34 -> 0.723 | D42: =IF(LifeCycle!D33="",0,INDEX(KEA.General.RawMaterial,MATCH(LifeCycle!D33,KEA.General.Name,0)))*LifeCycle!D34 -> 0 | E42: =IF(LifeCycle!E33="",0,INDEX(KEA.General.RawMaterial,MATCH(LifeCycle!E33,KEA.General.Name,0)))*LifeCycle!E34 -> 0 | F42: =IF(LifeCycle!F33="",0,INDEX(KEA.General.RawMaterial,MATCH(LifeCycle!F33,KEA.General.Name,0)))*LifeCycle!F34 -> 0 | G42: =IF(LifeCycle!G33="",0,INDEX(KEA.General.RawMaterial,MATCH(LifeCycle!G33,KEA.General.Name,0)))*LifeCycle!G34 -> 0 | H42: 0.723 | I42: =H42*LifeCycle!C61 -> 0 | J42: 0.723 | M42: =LifeCycle!D61 -> 0
B43: Bohrer 1 | C43: =IF(LifeCycle!C35="",0,INDEX(KEA.General.RawMaterial,MATCH(LifeCycle!C35,KEA.General.Name,0)))*LifeCycle!C36 -> 0.482 | D43: =IF(LifeCycle!D35="",0,INDEX(KEA.General.RawMaterial,MATCH(LifeCycle!D35,KEA.General.Name,0)))*LifeCycle!D36 -> 0 | E43: =IF(LifeCycle!E35="",0,INDEX(KEA.General.RawMaterial,MATCH(LifeCycle!E35,KEA.General.Name,0)))*LifeCycle!E36 -> 0 | F43: =IF(LifeCycle!F35="",0,INDEX(KEA.General.RawMaterial,MATCH(LifeCycle!F35,KEA.General.Name,0)))*LifeCycle!F36 -> 0 | G43: =IF(LifeCycle!G35="",0,INDEX(KEA.General.RawMaterial,MATCH(LifeCycle!G35,KEA.General.Name,0)))*LifeCycle!G36 -> 0 | H43: 0.482 | I43: =H43*LifeCycle!C62 -> 0.482 | J43: 0 | M43: =LifeCycle!D62 -> 0
B44: Bohrer 2 | C44: =IF(LifeCycle!C37="",0,INDEX(KEA.General.RawMaterial,MATCH(LifeCycle!C37,KEA.General.Name,0)))*LifeCycle!C38 -> 0.241 | D44: =IF(LifeCycle!D37="",0,INDEX(KEA.General.RawMaterial,MATCH(LifeCycle!D37,KEA.General.Name,0)))*LifeCycle!D38 -> 0 | E44: =IF(LifeCycle!E37="",0,INDEX(KEA.General.RawMaterial,MATCH(LifeCycle!E37,KEA.General.Name,0)))*LifeCycle!E38 -> 0 | F44: =IF(LifeCycle!F37="",0,INDEX(KEA.General.RawMaterial,MATCH(LifeCycle!F37,KEA.General.Name,0)))*LifeCycle!F38 -> 0 | G44: =IF(LifeCycle!G37="",0,INDEX(KEA.General.RawMaterial,MATCH(LifeCycle!G37,KEA.General.Name,0)))*LifeCycle!G38 -> 0 | H44: 0.241 | I44: =H44*LifeCycle!C63 -> 0.241 | J44: 0 | M44: =LifeCycle!D63 -> 0
B45: Bohrer 3 | C45: =IF(LifeCycle!C39="",0,INDEX(KEA.General.RawMaterial,MATCH(LifeCycle!C39,KEA.General.Name,0)))*LifeCycle!C40 -> 0.241 | D45: =IF(LifeCycle!D39="",0,INDEX(KEA.General.RawMaterial,MATCH(LifeCycle!D39,KEA.General.Name,0)))*LifeCycle!D40 -> 0 | E45: =IF(LifeCycle!E39="",0,INDEX(KEA.General.RawMaterial,MATCH(LifeCycle!E39,KEA.General.Name,0)))*LifeCycle!E40 -> 0 | F45: =IF(LifeCycle!F39="",0,INDEX(KEA.General.RawMaterial,MATCH(LifeCycle!F39,KEA.General.Name,0)))*LifeCycle!F40 -> 0 | G45: =IF(LifeCycle!G39="",0,INDEX(KEA.General.RawMaterial,MATCH(LifeCycle!G39,KEA.General.Name,0)))*LifeCycle!G40 -> 0 | H45: 0.241 | I45: =H45*LifeCycle!C64 -> 0.241 | J45: 0 | M45: =LifeCycle!D64 -> 0
B46: Bohrer 4 | C46: =IF(LifeCycle!C41="",0,INDEX(KEA.General.RawMaterial,MATCH(LifeCycle!C41,KEA.General.Name,0)))*LifeCycle!C42 -> 0.241 | D46: =IF(LifeCycle!D41="",0,INDEX(KEA.General.RawMaterial,MATCH(LifeCycle!D41,KEA.General.Name,0)))*LifeCycle!D42 -> 0 | E46: =IF(LifeCycle!E41="",0,INDEX(KEA.General.RawMaterial,MATCH(LifeCycle!E41,KEA.General.Name,0)))*LifeCycle!E42 -> 0 | F46: =IF(LifeCycle!F41="",0,INDEX(KEA.General.RawMaterial,MATCH(LifeCycle!F41,KEA.General.Name,0)))*LifeCycle!F42 -> 0 | G46: =IF(LifeCycle!G41="",0,INDEX(KEA.General.RawMaterial,MATCH(LifeCycle!G41,KEA.General.Name,0)))*LifeCycle!G42 -> 0 | H46: 0.241 | I46: =H46*LifeCycle!C65 -> 0 | J46: 0.241 | M46: =LifeCycle!D65 -> 0
B47: Gewindeschneider | C47: =IF(LifeCycle!C43="",0,INDEX(KEA.General.RawMaterial,MATCH(LifeCycle!C43,KEA.General.Name,0)))*LifeCycle!C44 -> 0.241 | D47: =IF(LifeCycle!D43="",0,INDEX(KEA.General.RawMaterial,MATCH(LifeCycle!D43,KEA.General.Name,0)))*LifeCycle!D44 -> 0 | E47: =IF(LifeCycle!E43="",0,INDEX(KEA.General.RawMaterial,MATCH(LifeCycle!E43,KEA.General.Name,0)))*LifeCycle!E44 -> 0 | F47: =IF(LifeCycle!F43="",0,INDEX(KEA.General.RawMaterial,MATCH(LifeCycle!F43,KEA.General.Name,0)))*LifeCycle!F44 -> 0 | G47: =IF(LifeCycle!G43="",0,INDEX(KEA.General.RawMaterial,MATCH(LifeCycle!G43,KEA.General.Name,0)))*LifeCycle!G44 -> 0 | H47: 0.241 | I47: =H47*LifeCycle!C66 -> 0.0241 | J47: 0.2169 | M47: =LifeCycle!D66 -> 0
A49: Packaging
C50: wood | D50: cardboard | E50: plastic | F50: Impact | G50: Mass
B51: Impact content | C51: =INDEX(KEA.Packaging.RawMaterial,MATCH(C50,KEA.Packaging.Name,0)) -> 0.5595744681 | D51: =INDEX(KEA.Packaging.RawMaterial,MATCH(D50,KEA.Packaging.Name,0)) -> 1.44 | E51: =INDEX(KEA.Packaging.RawMaterial,MATCH(E50,KEA.Packaging.Name,0)) -> 2.93
B52: Machine
B53: =B$8 -> Machine structure | C53: =C$51*LifeCycle!C70 -> 55.95744681 | D53: =D$51*LifeCycle!D70 -> 14.4 | E53: =E$51*LifeCycle!E70 -> 29.3 | F53: =SUM(C53:E53) -> 99.65744681 | G53: =SUM(LifeCycle!C70:E70) -> 120 | K53: Packaging | L53: =SUM(F53:F61) -> 115.2189362
B54: =Modules -> Hauptspindel | C54: =C$51*LifeCycle!C72 -> 0 | D54: =D$51*LifeCycle!D72 -> 0 | E54: =E$51*LifeCycle!E72 -> 0 | F54: =SUM(C54:E54) -> 0 | G54: =SUM(LifeCycle!C72:E72) -> 0
B55: Achse X1 | C55: =C$51*LifeCycle!C73 -> 0 | D55: =D$51*LifeCycle!D73 -> 0 | E55: =E$51*LifeCycle!E73 -> 0 | F55: =SUM(C55:E55) -> 0 | G55: =SUM(LifeCycle!C73:E73) -> 0
B56: Achse Y1 | C56: =C$51*LifeCycle!C74 -> 0 | D56: =D$51*LifeCycle!D74 -> 0 | E56: =E$51*LifeCycle!E74 -> 0 | F56: 0 | G56: =SUM(LifeCycle!C74:E74) -> 0
B57: Achse Z1 | C57: =C$51*LifeCycle!C75 -> 0 | D57: =D$51*LifeCycle!D75 -> 0 | E57: =E$51*LifeCycle!E75 -> 0 | F57: 0 | G57: =SUM(LifeCycle!C75:E75) -> 0
B58: Kabinett | C58: =C$51*LifeCycle!C76 -> 0 | D58: =D$51*LifeCycle!D76 -> 0 | E58: =E$51*LifeCycle!E76 -> 0 | F58: 0 | G58: =SUM(LifeCycle!C76:E76) -> 0
B59: KSM Pumpe | C59: =C$51*LifeCycle!C77 -> 0 | D59: =D$51*LifeCycle!D77 -> 0 | E59: =E$51*LifeCycle!E77 -> 0 | F59: 0 | G59: =SUM(LifeCycle!C77:E77) -> 0
B60: Spindelkühlung | C60: =C$51*LifeCycle!C78 -> 11.19148936 | D60: =D$51*LifeCycle!D78 -> 1.44 | E60: =E$51*LifeCycle!E78 -> 2.93 | F60: 15.56148936 | G60: =SUM(LifeCycle!C78:E78) -> 22
B61: Sinumerik | C61: =C$51*LifeCycle!C79 -> 0 | D61: =D$51*LifeCycle!D79 -> 0 | E61: =E$51*LifeCycle!E79 -> 0 | F61: 0 | G61: =SUM(LifeCycle!C79:E79) -> 0
B62: =B$17 -> Tools
B63: =Tools -> Fräser 1 | C63: =C$51*LifeCycle!C81 -> 0 | D63: =D$51*LifeCycle!D81 -> 0.144 | E63: =E$51*LifeCycle!E81 -> 0.586 | F63: =SUM(C63:E63) -> 0.73 | G63: =SUM(LifeCycle!C81:E81) -> 0.3
B64: Fräser 2 | C64: =C$51*LifeCycle!C82 -> 0 | D64: =D$51*LifeCycle!D82 -> 0.144 | E64: =E$51*LifeCycle!E82 -> 0.586 | F64: =SUM(C64:E64) -> 0.73 | G64: =SUM(LifeCycle!C82:E82) -> 0.3
B65: Fräser 3 | C65: =C$51*LifeCycle!C83 -> 0 | D65: =D$51*LifeCycle!D83 -> 0.144 | E65: =E$51*LifeCycle!E83 -> 0.586 | F65: 0.73 | G65: =SUM(LifeCycle!C83:E83) -> 0.3
B66: Bohrer 1 | C66: =C$51*LifeCycle!C84 -> 0 | D66: =D$51*LifeCycle!D84 -> 0.144 | E66: =E$51*LifeCycle!E84 -> 0.586 | F66: 0.73 | G66: =SUM(LifeCycle!C84:E84) -> 0.3
B67: Bohrer 2 | C67: =C$51*LifeCycle!C85 -> 0 | D67: =D$51*LifeCycle!D85 -> 0.144 | E67: =E$51*LifeCycle!E85 -> 0.586 | F67: 0.73 | G67: =SUM(LifeCycle!C85:E85) -> 0.3
B68: Bohrer 3 | C68: =C$51*LifeCycle!C86 -> 0 | D68: =D$51*LifeCycle!D86 -> 0.144 | E68: =E$51*LifeCycle!E86 -> 0.586 | F68: 0.73 | G68: =SUM(LifeCycle!C86:E86) -> 0.3
B69: Bohrer 4 | C69: =C$51*LifeCycle!C87 -> 0 | D69: =D$51*LifeCycle!D87 -> 0.144 | E69: =E$51*LifeCycle!E87 -> 0.586 | F69: 0.73 | G69: =SUM(LifeCycle!C87:E87) -> 0.3
B70: Gewindeschneider | C70: =C$51*LifeCycle!C88 -> 0 | D70: =D$51*LifeCycle!D88 -> 0.144 | E70: =E$51*LifeCycle!E88 -> 0.586 | F70: 0.73 | G70: =SUM(LifeCycle!C88:E88) -> 0.3
A72: Transportation
C73: lorry | D73: ship | E73: car | F73: train | G73: airplane | H73: Impact
B74: Impact Demand | C74: =INDEX(KEA.Transportation.RawMaterial,MATCH(C73,KEA.Transportation.Name,0)) -> 0.16 | D74: =INDEX(KEA.Transportation.RawMaterial,MATCH(D73,KEA.Transportation.Name,0)) -> 0.01 | E74: =INDEX(KEA.Transportation.RawMaterial,MATCH(E73,KEA.Transportation.Name,0)) -> 0.5 | F74: =INDEX(KEA.Transportation.RawMaterial,MATCH(F73,KEA.Transportation.Name,0)) -> 0.02 | G74: =INDEX(KEA.Transportation.RawMaterial,MATCH(G73,KEA.Transportation.Name,0)) -> 1.12
B75: Machine
B76: =B$8 -> Machine structure | C76: =C$74*($G53+$I8)*LifeCycle!C92/1000 -> 69.136 | D76: =D$74*($G53+$I8)*LifeCycle!D92/1000 -> 518.52 | E76: =E$74*($G53+$I8)*LifeCycle!E92/1000 -> 0 | F76: =F$74*($G53+$I8)*LifeCycle!F92/1000 -> 0 | G76: =G$74*($G53+$I8)*LifeCycle!G92/1000 -> 0 | H76: =SUM(C76:G76) -> 587.656 | K76: Transportation | L76: =SUM(H76:H84) -> 782.4824
B77: =Modules -> Hauptspindel | C77: =C$74*($G54+$I9)*LifeCycle!C94/1000 -> 1.92 | D77: =D$74*($G54+$I9)*LifeCycle!D94/1000 -> 14.4 | E77: =E$74*($G54+$I9)*LifeCycle!E94/1000 -> 0 | F77: =F$74*($G54+$I9)*LifeCycle!F94/1000 -> 0 | G77: =G$74*($G54+$I9)*LifeCycle!G94/1000 -> 0 | H77: =SUM(C77:G77) -> 16.32
B78: Achse X1 | C78: =C$74*($G55+$I10)*LifeCycle!C95/1000 -> 0.976 | D78: =D$74*($G55+$I10)*LifeCycle!D95/1000 -> 7.32 | E78: =E$74*($G55+$I10)*LifeCycle!E95/1000 -> 0 | F78: =F$74*($G55+$I10)*LifeCycle!F95/1000 -> 0 | G78: =G$74*($G55+$I10)*LifeCycle!G95/1000 -> 0 | H78: =SUM(C78:G78) -> 8.296
B79: Achse Y1 | C79: =C$74*($G56+$I11)*LifeCycle!C96/1000 -> 0.976 | D79: =D$74*($G56+$I11)*LifeCycle!D96/1000 -> 7.32 | E79: =E$74*($G56+$I11)*LifeCycle!E96/1000 -> 0 | F79: =F$74*($G56+$I11)*LifeCycle!F96/1000 -> 0 | G79: =G$74*($G56+$I11)*LifeCycle!G96/1000 -> 0 | H79: 8.296
B80: Achse Z1 | C80: =C$74*($G57+$I12)*LifeCycle!C97/1000 -> 0.568 | D80: =D$74*($G57+$I12)*LifeCycle!D97/1000 -> 4.26 | E80: =E$74*($G57+$I12)*LifeCycle!E97/1000 -> 0 | F80: =F$74*($G57+$I12)*LifeCycle!F97/1000 -> 0 | G80: =G$74*($G57+$I12)*LifeCycle!G97/1000 -> 0 | H80: 4.828
B81: Kabinett | C81: =C$74*($G58+$I13)*LifeCycle!C98/1000 -> 1.84 | D81: =D$74*($G58+$I13)*LifeCycle!D98/1000 -> 13.8 | E81: =E$74*($G58+$I13)*LifeCycle!E98/1000 -> 0 | F81: =F$74*($G58+$I13)*LifeCycle!F98/1000 -> 0 | G81: =G$74*($G58+$I13)*LifeCycle!G98/1000 -> 0 | H81: 15.64
B82: KSM Pumpe | C82: =C$74*($G59+$I14)*LifeCycle!C99/1000 -> 0.2752 | D82: =D$74*($G59+$I14)*LifeCycle!D99/1000 -> 2.064 | E82: =E$74*($G59+$I14)*LifeCycle!E99/1000 -> 0 | F82: =F$74*($G59+$I14)*LifeCycle!F99/1000 -> 0 | G82: =G$74*($G59+$I14)*LifeCycle!G99/1000 -> 0 | H82: 2.3392
B83: Spindelkühlung | C83: =C$74*($G60+$I15)*LifeCycle!C100/1000 -> 0.5312 | D83: =D$74*($G60+$I15)*LifeCycle!D100/1000 -> 3.984 | E83: =E$74*($G60+$I15)*LifeCycle!E100/1000 -> 0 | F83: =F$74*($G60+$I15)*LifeCycle!F100/1000 -> 0 | G83: =G$74*($G60+$I15)*LifeCycle!G100/1000 -> 0 | H83: 4.5152
B84: Sinumerik | C84: =C$74*($G61+$I16)*LifeCycle!C101/1000 -> 0.192 | D84: =D$74*($G61+$I16)*LifeCycle!D101/1000 -> 0 | E84: =E$74*($G61+$I16)*LifeCycle!E101/1000 -> 0 | F84: =F$74*($G61+$I16)*LifeCycle!F101/1000 -> 0 | G84: =G$74*($G61+$I16)*LifeCycle!G101/1000 -> 134.4 | H84: 134.592
B85: =B$17 -> Tools
B86: =Tools -> Fräser 1 | C86: =C$74*($G63+$I18)*LifeCycle!C103/1000 -> 0 | D86: =D$74*($G63+$I18)*LifeCycle!D103/1000 -> 0 | E86: =E$74*($G63+$I18)*LifeCycle!E103/1000 -> 0.175 | F86: =F$74*($G63+$I18)*LifeCycle!F103/1000 -> 0 | G86: =G$74*($G63+$I18)*LifeCycle!G103/1000 -> 3.92 | H86: =SUM(C86:G86) -> 4.095
B87: Fräser 2 | C87: =C$74*($G64+$I19)*LifeCycle!C104/1000 -> 0 | D87: =D$74*($G64+$I19)*LifeCycle!D104/1000 -> 0 | E87: =E$74*($G64+$I19)*LifeCycle!E104/1000 -> 0.15 | F87: =F$74*($G64+$I19)*LifeCycle!F104/1000 -> 0 | G87: =G$74*($G64+$I19)*LifeCycle!G104/1000 -> 3.36 | H87: =SUM(C87:G87) -> 3.51
B88: Fräser 3 | C88: =C$74*($G65+$I20)*LifeCycle!C105/1000 -> 0 | D88: =D$74*($G65+$I20)*LifeCycle!D105/1000 -> 0 | E88: =E$74*($G65+$I20)*LifeCycle!E105/1000 -> 0.15 | F88: =F$74*($G65+$I20)*LifeCycle!F105/1000 -> 0 | G88: =G$74*($G65+$I20)*LifeCycle!G105/1000 -> 3.36 | H88: 3.51
B89: Bohrer 1 | C89: =C$74*($G66+$I21)*LifeCycle!C106/1000 -> 0 | D89: =D$74*($G66+$I21)*LifeCycle!D106/1000 -> 0.06 | E89: =E$74*($G66+$I21)*LifeCycle!E106/1000 -> 0.125 | F89: =F$74*($G66+$I21)*LifeCycle!F106/1000 -> 0 | G89: =G$74*($G66+$I21)*LifeCycle!G106/1000 -> 0 | H89: 0.185
B90: Bohrer 2 | C90: =C$74*($G67+$I22)*LifeCycle!C107/1000 -> 0 | D90: =D$74*($G67+$I22)*LifeCycle!D107/1000 -> 0.048 | E90: =E$74*($G67+$I22)*LifeCycle!E107/1000 -> 0.1 | F90: =F$74*($G67+$I22)*LifeCycle!F107/1000 -> 0 | G90: =G$74*($G67+$I22)*LifeCycle!G107/1000 -> 0 | H90: 0.148
B91: Bohrer 3 | C91: =C$74*($G68+$I23)*LifeCycle!C108/1000 -> 0 | D91: =D$74*($G68+$I23)*LifeCycle!D108/1000 -> 0.048 | E91: =E$74*($G68+$I23)*LifeCycle!E108/1000 -> 0.1 | F91: =F$74*($G68+$I23)*LifeCycle!F108/1000 -> 0 | G91: =G$74*($G68+$I23)*LifeCycle!G108/1000 -> 0 | H91: 0.148
B92: Bohrer 4 | C92: =C$74*($G69+$I24)*LifeCycle!C109/1000 -> 0 | D92: =D$74*($G69+$I24)*LifeCycle!D109/1000 -> 0 | E92: =E$74*($G69+$I24)*LifeCycle!E109/1000 -> 0.1 | F92: =F$74*($G69+$I24)*LifeCycle!F109/1000 -> 0 | G92: =G$74*($G69+$I24)*LifeCycle!G109/1000 -> 2.24 | H92: 2.34
B93: Gewindeschneider | C93: =C$74*($G70+$I25)*LifeCycle!C110/1000 -> 0 | D93: =D$74*($G70+$I25)*LifeCycle!D110/1000 -> 0.048 | E93: =E$74*($G70+$I25)*LifeCycle!E110/1000 -> 0.1 | F93: =F$74*($G70+$I25)*LifeCycle!F110/1000 -> 0 | G93: =G$74*($G70+$I25)*LifeCycle!G110/1000 -> 0 | H93: 0.148
A95: Commissioning | B95: Building materials
B96: Material | D96: Impact
B97: =LifeCycle!B115 -> brick, concret | C97: =KEA.Construction.RawMaterial -> 0.32 | D97: =C97*LifeCycle!C115 -> 32 | K97: Commissioning | L97: =SUM(D97:D106) -> 3124
B98: =LifeCycle!B116 -> cement | C98: 0.587 | D98: =C98*LifeCycle!C116 -> 587
B99: =LifeCycle!B117 -> sand, grevel | C99: 0.01 | D99: =C99*LifeCycle!C117 -> 5
B100: =LifeCycle!B118 -> steel, iron | C100: 2.5 | D100: =C100*LifeCycle!C118 -> 2500
B102: Type of infrastructure
B103: =Overview!B39 -> Air conditioning | M103: =LifeCycle!C120 -> 0
B104: =Overview!B40 -> Heating (fluid) | M104: =LifeCycle!C121 -> 0
B105: =Overview!B41 -> Cooling (fluid) | M105: =LifeCycle!C122 -> 0
B106: =Overview!B42 -> Lubrication centre | M106: =LifeCycle!C123 -> 0
A108: Operation
B109: product lifetime [y] | C109: =LifeCycle!C126 -> 5
B111: Energy
D112: Average consumption during machine states | K112: Energy | L112: =SUM(D117:G117) -> 255182.3517
C113: installed power | D113: Operation | E113: Ready | F113: Standby | G113: Off | H113: Total
B114: Total | C114: =SUM(LifeCycle!C131:C140)/1000 -> 114 | D114: =SUM(LifeCycle!D131:D140)/1000 -> 34 | E114: =SUM(LifeCycle!E131:E140)/1000 -> 6.1 | F114: =SUM(LifeCycle!F131:F140)/1000 -> 4.5 | G114: =SUM(LifeCycle!G131:G140)/1000 -> 0.1
B115: Time, relative | D115: =TRANSPOSE(MacheStateDistribution) -> 0.3392696159 | E115: 0.1935093365 | F115: 0.1088175879 | G115: 0.3584034597
B116: Time, Absolut | D116: =MachineLifetime*365*24*D115 -> 14860.00918 | E116: =MachineLifetime*365*24*E115 -> 8475.708937 | F116: 4766.21035 | G116: 15698.07154
B117: Impact demand | D117: =D114*D116*INDEX(KEA.Energy.RawMaterial,MATCH(MachineEnergySource,KEA.Energy.Name,0)) -> 222305.7373 | E117: =E114*E116*INDEX(KEA.Energy.RawMaterial,MATCH(MachineEnergySource,KEA.Energy.Name,0)) -> 22748.80279 | F117: =F114*F116*INDEX(KEA.Energy.RawMaterial,MATCH(MachineEnergySource,KEA.Energy.Name,0)) -> 9437.096494 | G117: =G114*G116*INDEX(KEA.Energy.RawMaterial,MATCH(MachineEnergySource,KEA.Energy.Name,0)) -> 690.7151476
B118: =IF(LifeCycle!B131="","",LifeCycle!B131) -> Machine structure | D118: =IF($B118="",0,LifeCycle!D131)*Calculation!D$116/1000 -> 0 | E118: =IF($B118="",0,LifeCycle!E131)*Calculation!E$116/1000 -> 0 | F118: =IF($B118="",0,LifeCycle!F131)*Calculation!F$116/1000 -> 0 | G118: =IF($B118="",0,LifeCycle!G131)*Calculation!G$116/1000 -> 0 | H118: =SUM(D118:G118) -> 0
B119: =IF(LifeCycle!B133="","",LifeCycle!B133) -> Hauptspindel | D119: =IF($B119="",0,LifeCycle!D133)*Calculation!D$116/1000 -> 178320.1101 | E119: =IF($B119="",0,LifeCycle!E133)*Calculation!E$116/1000 -> 8475.708937 | F119: =IF($B119="",0,LifeCycle!F133)*Calculation!F$116/1000 -> 0 | G119: =IF($B119="",0,LifeCycle!G133)*Calculation!G$116/1000 -> 0 | H119: =SUM(D119:G119) -> 186795.819
B120: =IF(LifeCycle!B134="","",LifeCycle!B134) -> Achse X1 | D120: =IF($B120="",0,LifeCycle!D134)*Calculation!D$116/1000 -> 59440.0367 | E120: =IF($B120="",0,LifeCycle!E134)*Calculation!E$116/1000 -> 1695.141787 | F120: =IF($B120="",0,LifeCycle!F134)*Calculation!F$116/1000 -> 0 | G120: =IF($B120="",0,LifeCycle!G134)*Calculation!G$116/1000 -> 0 | H120: 61135.17849
B121: =IF(LifeCycle!B135="","",LifeCycle!B135) -> Achse Y1 | D121: =IF($B121="",0,LifeCycle!D135)*Calculation!D$116/1000 -> 59440.0367 | E121: =IF($B121="",0,LifeCycle!E135)*Calculation!E$116/1000 -> 1695.141787 | F121: =IF($B121="",0,LifeCycle!F135)*Calculation!F$116/1000 -> 0 | G121: =IF($B121="",0,LifeCycle!G135)*Calculation!G$116/1000 -> 0 | H121: 61135.17849
B122: =IF(LifeCycle!B136="","",LifeCycle!B136) -> Achse Z1 | D122: =IF($B122="",0,LifeCycle!D136)*Calculation!D$116/1000 -> 11888.00734 | E122: =IF($B122="",0,LifeCycle!E136)*Calculation!E$116/1000 -> 1695.141787 | F122: =IF($B122="",0,LifeCycle!F136)*Calculation!F$116/1000 -> 0 | G122: =IF($B122="",0,LifeCycle!G136)*Calculation!G$116/1000 -> 0 | H122: 13583.14913
B123: =IF(LifeCycle!B137="","",LifeCycle!B137) -> Kabinett | D123: =IF($B123="",0,LifeCycle!D137)*Calculation!D$116/1000 -> 59440.0367 | E123: =IF($B123="",0,LifeCycle!E137)*Calculation!E$116/1000 -> 21189.27234 | F123: =IF($B123="",0,LifeCycle!F137)*Calculation!F$116/1000 -> 11915.52588 | G123: =IF($B123="",0,LifeCycle!G137)*Calculation!G$116/1000 -> 0 | H123: 92544.83492
B124: =IF(LifeCycle!B138="","",LifeCycle!B138) -> KSM Pumpe | D124: =IF($B124="",0,LifeCycle!D138)*Calculation!D$116/1000 -> 104020.0642 | E124: =IF($B124="",0,LifeCycle!E138)*Calculation!E$116/1000 -> 0 | F124: =IF($B124="",0,LifeCycle!F138)*Calculation!F$116/1000 -> 0 | G124: =IF($B124="",0,LifeCycle!G138)*Calculation!G$116/1000 -> 0 | H124: 104020.0642
B125: =IF(LifeCycle!B139="","",LifeCycle!B139) -> Spindelkühlung | D125: =IF($B125="",0,LifeCycle!D139)*Calculation!D$116/1000 -> 29720.01835 | E125: =IF($B125="",0,LifeCycle!E139)*Calculation!E$116/1000 -> 15256.27609 | F125: =IF($B125="",0,LifeCycle!F139)*Calculation!F$116/1000 -> 8579.178631 | G125: =IF($B125="",0,LifeCycle!G139)*Calculation!G$116/1000 -> 0 | H125: 53555.47307
B126: =IF(LifeCycle!B140="","",LifeCycle!B140) -> Sinumerik | D126: =IF($B126="",0,LifeCycle!D140)*Calculation!D$116/1000 -> 2972.001835 | E126: =IF($B126="",0,LifeCycle!E140)*Calculation!E$116/1000 -> 1695.141787 | F126: =IF($B126="",0,LifeCycle!F140)*Calculation!F$116/1000 -> 953.2420701 | G126: =IF($B126="",0,LifeCycle!G140)*Calculation!G$116/1000 -> 1569.807154 | H126: 7190.192846
B127: Tools | C127: Impact / P | D127: Amount | E127: Impact
B128: =Tools -> Fräser 1 | C128: =I18+H40+F63+H86+H169 -> 6.189 | D128: =Use!F46/Use!D46 -> 713.2804404 | E128: =IF(B128<>0,D128*C128,0) -> 4414.492646 | K128: Tools | L128: =SUM(E128:E135) -> 10936.90731
B129: Fräser 2 | C129: 5.263 | D129: =Use!F47/Use!D47 -> 713.2804404 | E129: =IF(B129<>0,D129*C129,0) -> 3753.994958
B130: Fräser 3 | C130: 5.263 | D130: =Use!F48/Use!D48 -> 178.3201101 | E130: 938.4987395
B131: Bohrer 1 | C131: 1.597 | D131: =Use!F49/Use!D49 -> 356.6402202 | E131: 569.5544317
B132: Bohrer 2 | C132: 1.219 | D132: =Use!F50/Use!D50 -> 178.3201101 | E132: 217.3722142
B133: Bohrer 3 | C133: 1.219 | D133: =Use!F51/Use!D51 -> 178.3201101 | E133: 217.3722142
B134: Bohrer 4 | C134: 3.411 | D134: =Use!F52/Use!D52 -> 178.3201101 | E134: 608.2498956
B135: Gewindeschneider | C135: 1.219 | D135: =Use!F53/Use!D53 -> 178.3201101 | E135: 217.3722142
B136: Infrastructure | C136: Power | D136: Up-Time | E136: Impact
B137: =B103:B106 -> Air conditioning | C137: =Infrastructure!C17 -> 4800 | D137: =Infrastructure!N17 -> 43800 | E137: =D137*C137/1000*INDEX(KEA.Energy.RawMaterial,MATCH(MachineEnergySource,KEA.Energy.Name,0)) -> 92505.6 | K137: Infrastructure | L137: =SUM(E137:E140) -> 97267.01112
B138: Heating (fluid) | C138: =Infrastructure!C20 -> 0 | D138: =Infrastructure!N20 -> 0 | E138: =D138*C138/1000*INDEX(KEA.Energy.RawMaterial,MATCH(MachineEnergySource,KEA.Energy.Name,0)) -> 0
B139: Cooling (fluid) | C139: =Infrastructure!C26 -> 200 | D139: =Infrastructure!N26 -> 28101.92846 | E139: =D139*C139/1000*INDEX(KEA.Energy.RawMaterial,MATCH(MachineEnergySource,KEA.Energy.Name,0)) -> 2472.969705
B140: Lubrication centre | C140: =Infrastructure!C32 -> 350 | D140: =Infrastructure!N32 -> 14860.00918 | E140: =D140*C140/1000*INDEX(KEA.Energy.RawMaterial,MATCH(MachineEnergySource,KEA.Energy.Name,0)) -> 2288.441413
B141: Resources | C141: Amount | D141: Up-Time | E141: Impact
B142: =KEA.Process.Name -> Oil (lubricant) | C142: =LifeCycle!C146:C149 -> 0.001 | D142: =IF(LifeCycle!D146="Operation only",Calculation!D$116,IF(LifeCycle!D146="Ready and higher",SUM(Calculation!D$116:E$116),IF(LifeCycle!D146="If machine is on",SUM(Calculation!D$116:F$116),IF(LifeCycle!D146="Allways",SUM(Calculation!D$116:G$116),0)))) -> 14860.00918 | E142: =C142*D142*60*INDEX(KEA.Process.RawMaterial,MATCH(B142,KEA.Process.Name,0)) -> 1141.248705 | K142: Resources | L142: =SUM(E142:E145) -> 17344.07435
B143: Pressured air | C143: 2 | D143: =IF(LifeCycle!D147="Operation only",Calculation!D$116,IF(LifeCycle!D147="Ready and higher",SUM(Calculation!D$116:E$116),IF(LifeCycle!D147="If machine is on",SUM(Calculation!D$116:F$116),IF(LifeCycle!D147="Allways",SUM(Calculation!D$116:G$116),0)))) -> 23335.71811 | E143: =C143*D143*60*INDEX(KEA.Process.RawMaterial,MATCH(B143,KEA.Process.Name,0)) -> 154.0157395
B144: Gas | C144: 0 | D144: =IF(LifeCycle!D148="Operation only",Calculation!D$116,IF(LifeCycle!D148="Ready and higher",SUM(Calculation!D$116:E$116),IF(LifeCycle!D148="If machine is on",SUM(Calculation!D$116:F$116),IF(LifeCycle!D148="Allways",SUM(Calculation!D$116:G$116),0)))) -> 0 | E144: =C144*D144*60*INDEX(KEA.Process.RawMaterial,MATCH(B144,KEA.Process.Name,0)) -> 0
B145: Water | C145: 60 | D145: =IF(LifeCycle!D149="Operation only",Calculation!D$116,IF(LifeCycle!D149="Ready and higher",SUM(Calculation!D$116:E$116),IF(LifeCycle!D149="If machine is on",SUM(Calculation!D$116:F$116),IF(LifeCycle!D149="Allways",SUM(Calculation!D$116:G$116),0)))) -> 14860.00918 | E145: =C145*D145*60*INDEX(KEA.Process.RawMaterial,MATCH(B145,KEA.Process.Name,0)) -> 16048.80991
B146: Scrap | C146: Impact / P | D146: Amount | E146: Defects | F146: Impact
B147: =Use!B57:B60 -> steel, high-alloyed | C147: =Use!H70:H73 -> 4.67 | D147: =Use!$C57*(1-Use!D57)*Calculation!$D$116 -> 17832.01101 | E147: =Use!$C57*Use!$C$64*Calculation!$D$116 -> 445.8002753 | F147: =(D147+E147)*C147 -> 85357.37871 | K147: Scrap material | L147: =SUM(F147:F150) -> 110699.6384
B148: aluminium, copper, brass | C148: 5.32 | D148: =Use!$C58*(1-Use!D58)*Calculation!$D$116 -> 743.0004588 | E148: =Use!$C58*Use!$C$64*Calculation!$D$116 -> 74.30004588 | F148: =(D148+E148)*C148 -> 4348.038685
B149: steel, iron | C149: 2.41 | D149: =Use!$C59*(1-Use!D59)*Calculation!$D$116 -> 7430.004588 | E149: =Use!$C59*Use!$C$64*Calculation!$D$116 -> 743.0004588 | F149: 19696.94216
B150: PE, PP, PET, Polyester | C150: 2.91 | D150: =Use!$C60*(1-Use!D60)*Calculation!$D$116 -> 297.2001835 | E150: =Use!$C60*Use!$C$64*Calculation!$D$116 -> 148.6000918 | F150: 1297.278801
B151: Services
B152: Impact | C152: =LifeCycle!C152*LifeCycle!C154*LifeCycle!C155*Calculation!C74/1000 -> 7.41424 | K152: Services | L152: =C152 -> 7.41424
B153: Parts
B154: annual output | C154: =D116/(Use!C14*24) -> 123547.4204
A156: Recycling
C157: Impact Material 1 | D157: Impact Material 2 | E157: Impact Material 3 | F157: Impact Material 4 | G157: Impact Material 5 | H157: Impact
B158: Machine
B159: =B$8 -> Machine structure | C159: =IF(LifeCycle!C9="",0,INDEX(KEA.General.Recycling,MATCH(LifeCycle!C9,KEA.General.Name,0)))*LifeCycle!C10 -> 0 | D159: =IF(LifeCycle!D9="",0,INDEX(KEA.General.Recycling,MATCH(LifeCycle!D9,KEA.General.Name,0)))*LifeCycle!D10 -> 0 | E159: =IF(LifeCycle!E9="",0,INDEX(KEA.General.Recycling,MATCH(LifeCycle!E9,KEA.General.Name,0)))*LifeCycle!E10 -> 0 | F159: =IF(LifeCycle!F9="",0,INDEX(KEA.General.Recycling,MATCH(LifeCycle!F9,KEA.General.Name,0)))*LifeCycle!F10 -> 0 | G159: =IF(LifeCycle!G9="",0,INDEX(KEA.General.Recycling,MATCH(LifeCycle!G9,KEA.General.Name,0)))*LifeCycle!G10 -> 0 | H159: =SUM(C159:G159)*LifeCycle!C159 -> 0 | K159: Recycling | L159: =SUM(H159:H167) -> 0
B160: =IF(Module_1="","-",Module_1) -> Hauptspindel | C160: =IF(LifeCycle!C12="",0,INDEX(KEA.General.Recycling,MATCH(LifeCycle!C12,KEA.General.Name,0)))*LifeCycle!C13 -> 0 | D160: =IF(LifeCycle!D12="",0,INDEX(KEA.General.Recycling,MATCH(LifeCycle!D12,KEA.General.Name,0)))*LifeCycle!D13 -> 0 | E160: =IF(LifeCycle!E12="",0,INDEX(KEA.General.Recycling,MATCH(LifeCycle!E12,KEA.General.Name,0)))*LifeCycle!E13 -> 0 | F160: =IF(LifeCycle!F12="",0,INDEX(KEA.General.Recycling,MATCH(LifeCycle!F12,KEA.General.Name,0)))*LifeCycle!F13 -> 0 | G160: =IF(LifeCycle!G12="",0,INDEX(KEA.General.Recycling,MATCH(LifeCycle!G12,KEA.General.Name,0)))*LifeCycle!G13 -> 0 | H160: =SUM(C160:G160)*LifeCycle!C161 -> 0
B161: =IF(Module_2="","-",Module_2) -> Achse X1 | C161: =IF(LifeCycle!C14="",0,INDEX(KEA.General.Recycling,MATCH(LifeCycle!C14,KEA.General.Name,0)))*LifeCycle!C15 -> 0 | D161: =IF(LifeCycle!D14="",0,INDEX(KEA.General.Recycling,MATCH(LifeCycle!D14,KEA.General.Name,0)))*LifeCycle!D15 -> 0 | E161: =IF(LifeCycle!E14="",0,INDEX(KEA.General.Recycling,MATCH(LifeCycle!E14,KEA.General.Name,0)))*LifeCycle!E15 -> 0 | F161: =IF(LifeCycle!F14="",0,INDEX(KEA.General.Recycling,MATCH(LifeCycle!F14,KEA.General.Name,0)))*LifeCycle!F15 -> 0 | G161: =IF(LifeCycle!G14="",0,INDEX(KEA.General.Recycling,MATCH(LifeCycle!G14,KEA.General.Name,0)))*LifeCycle!G15 -> 0 | H161: =SUM(C161:G161)*LifeCycle!C162 -> 0
B162: =IF(Module_3="","-",Module_3) -> Achse Y1 | C162: =IF(LifeCycle!C16="",0,INDEX(KEA.General.Recycling,MATCH(LifeCycle!C16,KEA.General.Name,0)))*LifeCycle!C17 -> 0 | D162: =IF(LifeCycle!D16="",0,INDEX(KEA.General.Recycling,MATCH(LifeCycle!D16,KEA.General.Name,0)))*LifeCycle!D17 -> 0 | E162: =IF(LifeCycle!E16="",0,INDEX(KEA.General.Recycling,MATCH(LifeCycle!E16,KEA.General.Name,0)))*LifeCycle!E17 -> 0 | F162: =IF(LifeCycle!F16="",0,INDEX(KEA.General.Recycling,MATCH(LifeCycle!F16,KEA.General.Name,0)))*LifeCycle!F17 -> 0 | G162: =IF(LifeCycle!G16="",0,INDEX(KEA.General.Recycling,MATCH(LifeCycle!G16,KEA.General.Name,0)))*LifeCycle!G17 -> 0 | H162: =SUM(C162:G162)*LifeCycle!C163 -> 0
B163: =IF(Module_4="","-",Module_4) -> Achse Z1 | C163: =IF(LifeCycle!C18="",0,INDEX(KEA.General.Recycling,MATCH(LifeCycle!C18,KEA.General.Name,0)))*LifeCycle!C19 -> 0 | D163: =IF(LifeCycle!D18="",0,INDEX(KEA.General.Recycling,MATCH(LifeCycle!D18,KEA.General.Name,0)))*LifeCycle!D19 -> 0 | E163: =IF(LifeCycle!E18="",0,INDEX(KEA.General.Recycling,MATCH(LifeCycle!E18,KEA.General.Name,0)))*LifeCycle!E19 -> 0 | F163: =IF(LifeCycle!F18="",0,INDEX(KEA.General.Recycling,MATCH(LifeCycle!F18,KEA.General.Name,0)))*LifeCycle!F19 -> 0 | G163: =IF(LifeCycle!G18="",0,INDEX(KEA.General.Recycling,MATCH(LifeCycle!G18,KEA.General.Name,0)))*LifeCycle!G19 -> 0 | H163: =SUM(C163:G163)*LifeCycle!C164 -> 0
B164: =IF(Module_5="","-",Module_5) -> Kabinett | C164: =IF(LifeCycle!C20="",0,INDEX(KEA.General.Recycling,MATCH(LifeCycle!C20,KEA.General.Name,0)))*LifeCycle!C21 -> 0 | D164: =IF(LifeCycle!D20="",0,INDEX(KEA.General.Recycling,MATCH(LifeCycle!D20,KEA.General.Name,0)))*LifeCycle!D21 -> 0 | E164: =IF(LifeCycle!E20="",0,INDEX(KEA.General.Recycling,MATCH(LifeCycle!E20,KEA.General.Name,0)))*LifeCycle!E21 -> 0 | F164: =IF(LifeCycle!F20="",0,INDEX(KEA.General.Recycling,MATCH(LifeCycle!F20,KEA.General.Name,0)))*LifeCycle!F21 -> 0 | G164: =IF(LifeCycle!G20="",0,INDEX(KEA.General.Recycling,MATCH(LifeCycle!G20,KEA.General.Name,0)))*LifeCycle!G21 -> 0 | H164: =SUM(C164:G164)*LifeCycle!C165 -> 0
B165: =IF(Module_6="","-",Module_6) -> KSM Pumpe | C165: =IF(LifeCycle!C22="",0,INDEX(KEA.General.Recycling,MATCH(LifeCycle!C22,KEA.General.Name,0)))*LifeCycle!C23 -> 0 | D165: =IF(LifeCycle!D22="",0,INDEX(KEA.General.Recycling,MATCH(LifeCycle!D22,KEA.General.Name,0)))*LifeCycle!D23 -> 0 | E165: =IF(LifeCycle!E22="",0,INDEX(KEA.General.Recycling,MATCH(LifeCycle!E22,KEA.General.Name,0)))*LifeCycle!E23 -> 0 | F165: =IF(LifeCycle!F22="",0,INDEX(KEA.General.Recycling,MATCH(LifeCycle!F22,KEA.General.Name,0)))*LifeCycle!F23 -> 0 | G165: =IF(LifeCycle!G22="",0,INDEX(KEA.General.Recycling,MATCH(LifeCycle!G22,KEA.General.Name,0)))*LifeCycle!G23 -> 0 | H165: =SUM(C165:G165)*LifeCycle!C166 -> 0
B166: =IF(Module_7="","-",Module_7) -> Spindelkühlung | C166: =IF(LifeCycle!C24="",0,INDEX(KEA.General.Recycling,MATCH(LifeCycle!C24,KEA.General.Name,0)))*LifeCycle!C25 -> 0 | D166: =IF(LifeCycle!D24="",0,INDEX(KEA.General.Recycling,MATCH(LifeCycle!D24,KEA.General.Name,0)))*LifeCycle!D25 -> 0 | E166: =IF(LifeCycle!E24="",0,INDEX(KEA.General.Recycling,MATCH(LifeCycle!E24,KEA.General.Name,0)))*LifeCycle!E25 -> 0 | F166: =IF(LifeCycle!F24="",0,INDEX(KEA.General.Recycling,MATCH(LifeCycle!F24,KEA.General.Name,0)))*LifeCycle!F25 -> 0 | G166: =IF(LifeCycle!G24="",0,INDEX(KEA.General.Recycling,MATCH(LifeCycle!G24,KEA.General.Name,0)))*LifeCycle!G25 -> 0 | H166: =SUM(C166:G166)*LifeCycle!C167 -> 0
B167: =IF(Module_8="","-",Module_8) -> Sinumerik | C167: =IF(LifeCycle!C26="",0,INDEX(KEA.General.Recycling,MATCH(LifeCycle!C26,KEA.General.Name,0)))*LifeCycle!C27 -> 0 | D167: =IF(LifeCycle!D26="",0,INDEX(KEA.General.Recycling,MATCH(LifeCycle!D26,KEA.General.Name,0)))*LifeCycle!D27 -> 0 | E167: =IF(LifeCycle!E26="",0,INDEX(KEA.General.Recycling,MATCH(LifeCycle!E26,KEA.General.Name,0)))*LifeCycle!E27 -> 0 | F167: =IF(LifeCycle!F26="",0,INDEX(KEA.General.Recycling,MATCH(LifeCycle!F26,KEA.General.Name,0)))*LifeCycle!F27 -> 0 | G167: =IF(LifeCycle!G26="",0,INDEX(KEA.General.Recycling,MATCH(LifeCycle!G26,KEA.General.Name,0)))*LifeCycle!G27 -> 0 | H167: =SUM(C167:G167)*LifeCycle!C168 -> 0
B168: =B$17 -> Tools
B169: =IF(Tool_1="","-",Tool_1) -> Fräser 1 | C169: =IF(LifeCycle!C29="",0,INDEX(KEA.General.Recycling,MATCH(LifeCycle!C29,KEA.General.Name,0)))*LifeCycle!C30 -> 0 | D169: =IF(LifeCycle!D29="",0,INDEX(KEA.General.Recycling,MATCH(LifeCycle!D29,KEA.General.Name,0)))*LifeCycle!D30 -> 0 | E169: =IF(LifeCycle!E29="",0,INDEX(KEA.General.Recycling,MATCH(LifeCycle!E29,KEA.General.Name,0)))*LifeCycle!E30 -> 0 | F169: =IF(LifeCycle!F29="",0,INDEX(KEA.General.Recycling,MATCH(LifeCycle!F29,KEA.General.Name,0)))*LifeCycle!F30 -> 0 | G169: =IF(LifeCycle!G29="",0,INDEX(KEA.General.Recycling,MATCH(LifeCycle!G29,KEA.General.Name,0)))*LifeCycle!G30 -> 0 | H169: =SUM(C169:G169)*LifeCycle!C170 -> 0
B170: =IF(Tool_2="","-",Tool_2) -> Fräser 2 | C170: =IF(LifeCycle!C31="",0,INDEX(KEA.General.Recycling,MATCH(LifeCycle!C31,KEA.General.Name,0)))*LifeCycle!C32 -> 0 | D170: =IF(LifeCycle!D31="",0,INDEX(KEA.General.Recycling,MATCH(LifeCycle!D31,KEA.General.Name,0)))*LifeCycle!D32 -> 0 | E170: =IF(LifeCycle!E31="",0,INDEX(KEA.General.Recycling,MATCH(LifeCycle!E31,KEA.General.Name,0)))*LifeCycle!E32 -> 0 | F170: =IF(LifeCycle!F31="",0,INDEX(KEA.General.Recycling,MATCH(LifeCycle!F31,KEA.General.Name,0)))*LifeCycle!F32 -> 0 | G170: =IF(LifeCycle!G31="",0,INDEX(KEA.General.Recycling,MATCH(LifeCycle!G31,KEA.General.Name,0)))*LifeCycle!G32 -> 0 | H170: =SUM(C170:G170)*LifeCycle!C171 -> 0
B171: =IF(Tool_3="","-",Tool_3) -> Fräser 3 | C171: =IF(LifeCycle!C33="",0,INDEX(KEA.General.Recycling,MATCH(LifeCycle!C33,KEA.General.Name,0)))*LifeCycle!C34 -> 0 | D171: =IF(LifeCycle!D33="",0,INDEX(KEA.General.Recycling,MATCH(LifeCycle!D33,KEA.General.Name,0)))*LifeCycle!D34 -> 0 | E171: =IF(LifeCycle!E33="",0,INDEX(KEA.General.Recycling,MATCH(LifeCycle!E33,KEA.General.Name,0)))*LifeCycle!E34 -> 0 | F171: =IF(LifeCycle!F33="",0,INDEX(KEA.General.Recycling,MATCH(LifeCycle!F33,KEA.General.Name,0)))*LifeCycle!F34 -> 0 | G171: =IF(LifeCycle!G33="",0,INDEX(KEA.General.Recycling,MATCH(LifeCycle!G33,KEA.General.Name,0)))*LifeCycle!G34 -> 0 | H171: =SUM(C171:G171)*LifeCycle!C172 -> 0
B172: =IF(Tool_4="","-",Tool_4) -> Bohrer 1 | C172: =IF(LifeCycle!C35="",0,INDEX(KEA.General.Recycling,MATCH(LifeCycle!C35,KEA.General.Name,0)))*LifeCycle!C36 -> 0 | D172: =IF(LifeCycle!D35="",0,INDEX(KEA.General.Recycling,MATCH(LifeCycle!D35,KEA.General.Name,0)))*LifeCycle!D36 -> 0 | E172: =IF(LifeCycle!E35="",0,INDEX(KEA.General.Recycling,MATCH(LifeCycle!E35,KEA.General.Name,0)))*LifeCycle!E36 -> 0 | F172: =IF(LifeCycle!F35="",0,INDEX(KEA.General.Recycling,MATCH(LifeCycle!F35,KEA.General.Name,0)))*LifeCycle!F36 -> 0 | G172: =IF(LifeCycle!G35="",0,INDEX(KEA.General.Recycling,MATCH(LifeCycle!G35,KEA.General.Name,0)))*LifeCycle!G36 -> 0 | H172: =SUM(C172:G172)*LifeCycle!C173 -> 0
B173: =IF(Tool_5="","-",Tool_5) -> Bohrer 2 | C173: =IF(LifeCycle!C37="",0,INDEX(KEA.General.Recycling,MATCH(LifeCycle!C37,KEA.General.Name,0)))*LifeCycle!C38 -> 0 | D173: =IF(LifeCycle!D37="",0,INDEX(KEA.General.Recycling,MATCH(LifeCycle!D37,KEA.General.Name,0)))*LifeCycle!D38 -> 0 | E173: =IF(LifeCycle!E37="",0,INDEX(KEA.General.Recycling,MATCH(LifeCycle!E37,KEA.General.Name,0)))*LifeCycle!E38 -> 0 | F173: =IF(LifeCycle!F37="",0,INDEX(KEA.General.Recycling,MATCH(LifeCycle!F37,KEA.General.Name,0)))*LifeCycle!F38 -> 0 | G173: =IF(LifeCycle!G37="",0,INDEX(KEA.General.Recycling,MATCH(LifeCycle!G37,KEA.General.Name,0)))*LifeCycle!G38 -> 0 | H173: =SUM(C173:G173)*LifeCycle!C174 -> 0
B174: =IF(Tool_6="","-",Tool_6) -> Bohrer 3 | C174: =IF(LifeCycle!C39="",0,INDEX(KEA.General.Recycling,MATCH(LifeCycle!C39,KEA.General.Name,0)))*LifeCycle!C40 -> 0 | D174: =IF(LifeCycle!D39="",0,INDEX(KEA.General.Recycling,MATCH(LifeCycle!D39,KEA.General.Name,0)))*LifeCycle!D40 -> 0 | E174: =IF(LifeCycle!E39="",0,INDEX(KEA.General.Recycling,MATCH(LifeCycle!E39,KEA.General.Name,0)))*LifeCycle!E40 -> 0 | F174: =IF(LifeCycle!F39="",0,INDEX(KEA.General.Recycling,MATCH(LifeCycle!F39,KEA.General.Name,0)))*LifeCycle!F40 -> 0 | G174: =IF(LifeCycle!G39="",0,INDEX(KEA.General.Recycling,MATCH(LifeCycle!G39,KEA.General.Name,0)))*LifeCycle!G40 -> 0 | H174: =SUM(C174:G174)*LifeCycle!C175 -> 0
B175: =IF(Tool_7="","-",Tool_7) -> Bohrer 4 | C175: =IF(LifeCycle!C41="",0,INDEX(KEA.General.Recycling,MATCH(LifeCycle!C41,KEA.General.Name,0)))*LifeCycle!C42 -> 0 | D175: =IF(LifeCycle!D41="",0,INDEX(KEA.General.Recycling,MATCH(LifeCycle!D41,KEA.General.Name,0)))*LifeCycle!D42 -> 0 | E175: =IF(LifeCycle!E41="",0,INDEX(KEA.General.Recycling,MATCH(LifeCycle!E41,KEA.General.Name,0)))*LifeCycle!E42 -> 0 | F175: =IF(LifeCycle!F41="",0,INDEX(KEA.General.Recycling,MATCH(LifeCycle!F41,KEA.General.Name,0)))*LifeCycle!F42 -> 0 | G175: =IF(LifeCycle!G41="",0,INDEX(KEA.General.Recycling,MATCH(LifeCycle!G41,KEA.General.Name,0)))*LifeCycle!G42 -> 0 | H175: =SUM(C175:G175)*LifeCycle!C176 -> 0
B176: =IF(Tool_8="","-",Tool_8) -> Gewindeschneider | C176: =IF(LifeCycle!C43="",0,INDEX(KEA.General.Recycling,MATCH(LifeCycle!C43,KEA.General.Name,0)))*LifeCycle!C44 -> 0 | D176: =IF(LifeCycle!D43="",0,INDEX(KEA.General.Recycling,MATCH(LifeCycle!D43,KEA.General.Name,0)))*LifeCycle!D44 -> 0 | E176: =IF(LifeCycle!E43="",0,INDEX(KEA.General.Recycling,MATCH(LifeCycle!E43,KEA.General.Name,0)))*LifeCycle!E44 -> 0 | F176: =IF(LifeCycle!F43="",0,INDEX(KEA.General.Recycling,MATCH(LifeCycle!F43,KEA.General.Name,0)))*LifeCycle!F44 -> 0 | G176: =IF(LifeCycle!G43="",0,INDEX(KEA.General.Recycling,MATCH(LifeCycle!G43,KEA.General.Name,0)))*LifeCycle!G44 -> 0 | H176: =SUM(C176:G176)*LifeCycle!C177 -> 0

Sheet Data (hidden)
A2: Unit | B2: =Results!$C$12 -> kg CO2 eq.
C4: Raw material | D4: Production | E4: Recycling | F4: Low. Heat. Val. | H4: Raw material | I4: Production | J4: Recycling | K4: Low. Heat. Val. | M4: Raw material | N4: Production | O4: Recycling | P4: Low. Heat. Val.
C5: =KEA.Unit&"/kg" -> kg CO2 eq./kg | D5: =KEA.Unit&"/kg" -> kg CO2 eq./kg | E5: =KEA.Unit&"/kg" -> kg CO2 eq./kg | F5: =KEA.Unit&"/kg" -> kg CO2 eq./kg | H5: MJ/kg | I5: MJ/kg | J5: MJ/kg | K5: MJ/kg | M5: kg CO2 eq/kg | N5: kg CO2 eq/kg | O5: kg CO2 eq/kg | P5: kg CO2 eq/kg
A6: General | B6: steel, iron | C6: =IF(KEA.Unit="MJ",H6,M6) -> 2.41 | D6: =IF(KEA.Unit="MJ",I6,N6) -> 2.008333333 | E6: =IF(KEA.Unit="MJ",J6,O6) -> 0 | F6: =IF(KEA.Unit="MJ",K6,P6) -> 0 | H6: 30 | I6: 25 | J6: -16 | K6: 0 | M6: 2.41 | N6: 2.008333333 | O6: 0 | P6: 0
B7: cast iron | C7: 1.6 | D7: 0.4266666667 | E7: 0 | F7: 0 | H7: 45 | I7: 12 | J7: -16 | K7: 0 | M7: 1.6 | N7: 0.4266666667 | O7: 0 | P7: 0
B8: steel, high-alloyed | C8: 4.67 | D8: 1.75125 | E8: 0 | F8: 0 | H8: 80 | I8: 30 | J8: -16 | K8: 0 | M8: 4.67 | N8: 1.75125 | O8: 0 | P8: 0
B9: PE, PP, PET, Polyester | C9: 2.91 | D9: 0.7275 | E9: 0 | F9: 0 | H9: 80 | I9: 20 | J9: -16 | K9: 32 | M9: 2.91 | N9: 0.7275 | O9: 0 | P9: 0
B10: PS | C10: 3.7 | D10: 0.8222222222 | E10: 0 | F10: 0 | H10: 90 | I10: 20 | J10: -16 | K10: 32 | M10: 3.7 | N10: 0.8222222222 | O10: 0 | P10: 0
B11: aluminium, copper, brass | C11: 5.32 | D11: 1.596 | E11: 0 | F11: 0 | H11: 100 | I11: 30 | J11: -16 | K11: 0 | M11: 5.32 | N11: 1.596 | O11: 0 | P11: 0
B12: PUR, PC | C12: 8.22 | D12: 1.565714286 | E12: 0 | F12: 0 | H12: 105 | I12: 20 | J12: -16 | K12: 32 | M12: 8.22 | N12: 1.565714286 | O12: 0 | P12: 0
B13: Polyamids, EP | C13: 3.95 | D13: 0.5266666667 | E13: 0 | F13: 0 | H13: 150 | I13: 20 | J13: -16 | K13: 32 | M13: 3.95 | N13: 0.5266666667 | O13: 0 | P13: 0
B14: electronics | C14: 58.99 | D14: 0 | E14: 0 | F14: 0 | H14: 170 | I14: 0 | J14: -16 | K14: 0 | M14: 58.99 | N14: 0 | O14: 0 | P14: 0
C16: =KEA.Unit&"/kg" -> kg CO2 eq./kg | H16: MJ/kg | M16: kg CO2 eq/kg
A17: Packaging | B17: wood | C17: =IF(KEA.Unit="MJ",H17,M17) -> 0.5595744681 | H17: 22 | M17: 0.5595744681
B18: cardboard | C18: =IF(KEA.Unit="MJ",H18,M18) -> 1.44 | H18: 38 | M18: 1.44
B19: plastic | C19: =IF(KEA.Unit="MJ",H19,M19) -> 2.93 | H19: 80 | M19: 2.93
C21: =KEA.Unit&"/kg" -> kg CO2 eq./kg | H21: MJ/kg | M21: kg CO2 eq/kg
A22: Construction | B22: brick, concret | C22: =IF(KEA.Unit="MJ",H22,M22) -> 0.32 | H22: 3 | M22: 0.32
B23: cement | C23: =IF(KEA.Unit="MJ",H23,M23) -> 0.587 | H23: 4 | M23: 0.587
B24: sand, grevel | C24: =IF(KEA.Unit="MJ",H24,M24) -> 0.01 | H24: 0.2 | M24: 0.01
B25: steel, iron | C25: =IF(KEA.Unit="MJ",H25,M25) -> 2.5 | H25: 45 | M25: 2.5
C27: =KEA.Unit&"/t/km" -> kg CO2 eq./t/km | H27: MJ/t/km | M27: kg CO2 eq/t/km
A28: Transportation | B28: lorry | C28: =IF(KEA.Unit="MJ",H28,M28) -> 0.16 | H28: 1 | M28: 0.16
B29: ship | C29: =IF(KEA.Unit="MJ",H29,M29) -> 0.01 | H29: 0.24 | M29: 0.01
B30: car | C30: =IF(KEA.Unit="MJ",H30,M30) -> 0.5 | H30: 13 | M30: 0.5
B31: train | C31: =IF(KEA.Unit="MJ",H31,M31) -> 0.02 | H31: 0.5 | M31: 0.02
B32: airplane | C32: =IF(KEA.Unit="MJ",H32,M32) -> 1.12 | H32: 22 | M32: 1.12
C35: =KEA.Unit&"/kWh" -> kg CO2 eq./kWh | H35: MJ/kWh | M35: kg CO2 eq/kWh
A36: Energy | B36: CH-Mix | C36: =IF(KEA.Unit="MJ",H36,M36) -> 0.1 | H36: 4.7 | M36: 0.1
B37: EU-Mix | C37: =IF(KEA.Unit="MJ",H37,M37) -> 0.44 | H37: 8.3 | M37: 0.44
B38: Global Average | C38: =IF(KEA.Unit="MJ",H38,M38) -> 0.78 | H38: 11.9 | M38: 0.78
C40: =KEA.Unit&"/l" -> kg CO2 eq./l | H40: MJ/l | M40: kg CO2 eq/l
A41: Process | B41: Oil (lubricant) | C41: =IF(KEA.Unit="MJ",H41,M41) -> 1.28 | H41: 40 | M41: 1.28
B42: Pressured air | C42: =7.5/60/1000*INDEX(KEA.Energy.RawMaterial,MATCH(MachineEnergySource,KEA.Energy.Name,0)) -> 5.5e-05 | H42: 0.0005875 | M42: 0.0005875
B43: Gas | C43: =IF(KEA.Unit="MJ",H43,M43) -> 0 | H43: 0.0045 | M43: 0
B44: Water | C44: =IF(KEA.Unit="MJ",H44,M44) -> 0.0003 | H44: 0.0054 | M44: 0.0003
B46: Class | C46: Water cooling | D46: Air cooling | H46: Source: | I46: N. Bey, 2000, The Oil Point Method – A tool for indicative environmental evaluation in material and process selection, Ph.D., Department of Manufacturing Engineering, Technical University of Denmark, Lynby, Denmark.
A47: Building | B47: A | C47: 5.05 | D47: 2.6
B48: B | C48: 4.85 | D48: 2.5
B49: C | C49: 4.45 | D49: 2.3
B50: D | C50: 4.05 | D50: 2.1
B51: E | C51: 3.65 | D51: 1.9
B52: F | C52: 3.25 | D52: 1.7
B53: - | C53: 3.05 | D53: 1.6
B55: Source: Schudeleit, 2015, inspire AG

Sheet About
A2: About
A6: Project | B6: This potential estimation tool for machine tools has been developed in the project "Eco-design Toolbox" (2011-2013). The goal of the project was, to supply the industry with tools for better product development.
A8: Project lead | B8: Züst Engineering AG CH-8607 Seegräben www.zuestengineering.ch rainer.zuest@zuestengineering.ch
A10: Research Partners | B10: Institute for machine tools and manufacturing (IWF) ETH Zürich www.iwf.mavt.ethz.ch www.inspire.ethz.ch weiss@inspire.ethz.ch
B11: inspire AG für mechatronische Produktionssysteme und Fertigungstechnik
A12: Industry Partners | B12: Mägerle AG Rollomatic SA Starrag Heckert AG Reiden Technik AG Pfiffner AG
A14: Endorsed by | B14: Swiss Electric Research

Sheet History (hidden)
A1: History
A4: Current Version: | B4: =H44 -> ET-MTED-V3R1
A7: Name | B7: V | C7: R | D7: Author | E7: Date | F7: Description | G7: New Version? | H7: Current?
A8: =IF(D8="","","ET-MTED-V"&B8&"R"&C8) -> ET-MTED-V1R0 | B8: 1 | C8: 0 | D8: ZS-inspire | E8: 2012-10-16 | F8: Initial Creation | G8: x | H8: =IF(A8="",H7,A8) -> ET-MTED-V1R0
A9: =IF(D9="","","ET-MTED-V"&B9&"R"&C9) -> ET-MTED-V1R1 | B9: =IF(D9="","",IF(G9="",B8,B8+1)) -> 1 | C9: =IF(D9="","",IF(B9-B8=0,C8+1,0)) -> 1 | D9: ZS-inspire | E9: 2012-11-11 | F9: Minor adaptions | H9: =IF(A9="",H8,A9) -> ET-MTED-V1R1
A10: ET-MTED-V2R0 | B10: =IF(D10="","",IF(G10="",B9,B9+1)) -> 2 | C10: =IF(D10="","",IF(B10-B9=0,C9+1,0)) -> 0 | D10: ZS-inspire | E10: 2013-01-23 | F10: New Model | G10: x | H10: ET-MTED-V2R0
A11: ET-MTED-V2R1 | B11: =IF(D11="","",IF(G11="",B10,B10+1)) -> 2 | C11: =IF(D11="","",IF(B11-B10=0,C10+1,0)) -> 1 | D11: ZS-inspire | E11: 2013-01-30 | F11: New Use phase input | H11: ET-MTED-V2R1
A12: ET-MTED-V2R2 | B12: 2 | C12: 2 | D12: ZS-inspire | E12: 2013-01-07 | F12: Minor Model and format adaption Examples added | H12: ET-MTED-V2R2
A13: ET-MTED-V2R3 | B13: 2 | C13: 3 | D13: ZS-inspire | E13: 2013-04-08 | F13: Empty forms, minor corrections | H13: ET-MTED-V2R3
A14: ET-MTED-V2R4 | B14: 2 | C14: 4 | D14: ZS-inspire | E14: 2013-04-10 | F14: Droplist corrected | H14: ET-MTED-V2R4
A15: ET-MTED-V2R5 | B15: 2 | C15: 5 | D15: ZS-inspire | E15: 2015-03-31 | F15: Formating and calculations | H15: ET-MTED-V2R5
A16: ET-MTED-V2R6 | B16: 2 | C16: 6 | D16: ZS-inspire | E16: 2015-04-22 | F16: Infrastructure adapted | H16: ET-MTED-V2R6
A17: ET-MTED-V2R7 | B17: 2 | C17: 7 | D17: ZS-IWF | E17: 2016-02-15 | F17: Minor corrections | H17: ET-MTED-V2R7
A18: ET-MTED-V2R8 | B18: 2 | C18: 8 | D18: ZS-ZEAG | E18: 2017-07-10 | F18: Minor corrections in "About" | H18: ET-MTED-V2R8
A19: ET-MTED-V3R0 | B19: 3 | C19: 0 | D19: ZS-ZEAG | E19: 2023-02-28 | F19: selection fleet, machine, part added; selection reference unit added; versioning added | G19: x | H19: ET-MTED-V3R0
A20: ET-MTED-V3R1 | B20: 3 | C20: 1 | D20: ZS-ZEAG | E20: 2023-09-08 | F20: Changed to relative paths | H20: ET-MTED-V3R1
H21: ET-MTED-V3R1
H22: ET-MTED-V3R1
H23: ET-MTED-V3R1
H24: ET-MTED-V3R1
H25: ET-MTED-V3R1
H26: ET-MTED-V3R1
H27: ET-MTED-V3R1
H28: ET-MTED-V3R1
H29: ET-MTED-V3R1
H30: ET-MTED-V3R1
H31: ET-MTED-V3R1
H32: ET-MTED-V3R1
H33: ET-MTED-V3R1
H34: ET-MTED-V3R1
H35: ET-MTED-V3R1
H36: ET-MTED-V3R1
H37: ET-MTED-V3R1
H38: ET-MTED-V3R1
H39: ET-MTED-V3R1
H40: ET-MTED-V3R1
H41: ET-MTED-V3R1
H42: ET-MTED-V3R1
H43: ET-MTED-V3R1
H44: ET-MTED-V3R1
